{"text_format":"1","workbook":"xlsx","n_sheets":4,"sheets":["Produktionsanlæg","Distributionsanlæg","Fællesfunktionsanlæg","Drop downliste"],"not_rendered":{"charts":0,"images":0,"macros":1,"external_links":0,"defined_names":2,"comments":0,"pivot_tables":0},"unopened":[],"bounds":{"document_bytes":16777216,"sheet_cells":100000,"rows_first":2000,"rows_last":500,"rows_between":2000,"halvings":0,"cell_chars":16384,"cell_head_chars":4096},"cells_cut":0,"cells_raw":0,"read":"whole","date_system":"1900"}

{"sheet":"Produktionsanlæg","index":0,"n_rows":1060,"n_cols":6,"rows_kept":1060,"cut":false,"hidden":false,"merged":[[0,5,1,5],[0,0,1,0],[0,1,1,1],[0,2,1,2],[0,3,1,3],[0,4,1,4]]}
["Produktionsanlæg","Enhed","Standard-levetid","Samlet mængde per 31/12-2014","Samlet mængde per 31/12-2015","Bemærk-ninger"]
[]
["Boringer"]
["Boring (inkl. etablering, forerør, filter og prøvepumpning)","dybdemeter",30,1535,1535]
["Råvandsstationer"]
["Råvandsstation komplet montering og boringshus/tørbrønd","stk.",30,35,35]
["Instrumenter (flowmåler+tryk transducer+alarmer)","stk.",10,35,35]
["Pumpe inkl. stigrør og forerørsforsejlinger mv. - 1","m³/h ",15,41,41]
["Pumpe inkl. stigrør og forerørsforsejlinger mv. - 2","m³/h ",15,30,30]
["Pumpe inkl. stigrør og forerørsforsejlinger mv. - 3","m³/h ",15,38,38]
["Pumpe inkl. stigrør og forerørsforsejlinger mv. - 4","m³/h ",15,39,39]
["Pumpe inkl. stigrør og forerørsforsejlinger mv. - 5","m³/h ",15,34,34]
["Pumpe inkl. stigrør og forerørsforsejlinger mv. - 6","m³/h ",15,30,30]
["Pumpe inkl. stigrør og forerørsforsejlinger mv. - 7","m³/h ",15,31,31]
["Pumpe inkl. stigrør og forerørsforsejlinger mv. - 8","m³/h ",15,28,28]
["Pumpe inkl. stigrør og forerørsforsejlinger mv. - 9","m³/h ",15,22,22]
["Pumpe inkl. stigrør og forerørsforsejlinger mv. - 10","m³/h ",15,31,31]
["Pumpe inkl. stigrør og forerørsforsejlinger mv. - 11","m³/h ",15,19,19]
["Pumpe inkl. stigrør og forerørsforsejlinger mv. - 12","m³/h ",15,32,32]
["Pumpe inkl. stigrør og forerørsforsejlinger mv. - 13","m³/h ",15,40,40]
["Pumpe inkl. stigrør og forerørsforsejlinger mv. - 14","m³/h ",15,30,30]
["Pumpe inkl. stigrør og forerørsforsejlinger mv. - 15","m³/h ",15,4,4]
["Pumpe inkl. stigrør og forerørsforsejlinger mv. - 16","m³/h ",15,11,11]
["Pumpe inkl. stigrør og forerørsforsejlinger mv. - 17","m³/h ",15,29,29]
["Pumpe inkl. stigrør og forerørsforsejlinger mv. - 18","m³/h ",15,17,17]
["Pumpe inkl. stigrør og forerørsforsejlinger mv. - 19","m³/h ",15,30,30]
["Pumpe inkl. stigrør og forerørsforsejlinger mv. - 20","m³/h ",15,27,27]
["Pumpe inkl. stigrør og forerørsforsejlinger mv. - 21","m³/h ",15,29,29]
["Pumpe inkl. stigrør og forerørsforsejlinger mv. - 22","m³/h ",15,17,17]
["Pumpe inkl. stigrør og forerørsforsejlinger mv. - 23","m³/h ",15,11,11]
["Pumpe inkl. stigrør og forerørsforsejlinger mv. - 24","m³/h ",15,20,20]
["Pumpe inkl. stigrør og forerørsforsejlinger mv. - 25","m³/h ",15,28,28]
["Pumpe inkl. stigrør og forerørsforsejlinger mv. - 26","m³/h ",15,19,19]
["Pumpe inkl. stigrør og forerørsforsejlinger mv. - 27","m³/h ",15,19,19]
["Pumpe inkl. stigrør og forerørsforsejlinger mv. - 28","m³/h ",15,2,2]
["Pumpe inkl. stigrør og forerørsforsejlinger mv. - 29","m³/h ",15,6,6]
["Pumpe inkl. stigrør og forerørsforsejlinger mv. - 30","m³/h ",15,41,41]
["Pumpe inkl. stigrør og forerørsforsejlinger mv. - 31","m³/h ",15,9,9]
["Pumpe inkl. stigrør og forerørsforsejlinger mv. - 32","m³/h ",15,2,2]
["Pumpe inkl. stigrør og forerørsforsejlinger mv. - 33","m³/h ",15,20,20]
["Pumpe inkl. stigrør og forerørsforsejlinger mv. - 34","m³/h ",15,20,20]
["Pumpe inkl. stigrør og forerørsforsejlinger mv. - 35","m³/h ",15,20,20]
["Pumpe inkl. stigrør og forerørsforsejlinger mv. - 36","m³/h ",15,0,0]
["Pumpe inkl. stigrør og forerørsforsejlinger mv. - 37","m³/h ",15,0,0]
["Pumpe inkl. stigrør og forerørsforsejlinger mv. - 38","m³/h ",15,0,0]
["Pumpe inkl. stigrør og forerørsforsejlinger mv. - 39","m³/h ",15,0,0]
["Pumpe inkl. stigrør og forerørsforsejlinger mv. - 40","m³/h ",15,0,0]
["Pumpe inkl. stigrør og forerørsforsejlinger mv. - 41","m³/h ",15,0,0]
["Pumpe inkl. stigrør og forerørsforsejlinger mv. - 42","m³/h ",15,0,0]
["Pumpe inkl. stigrør og forerørsforsejlinger mv. - 43","m³/h ",15,0,0]
["Pumpe inkl. stigrør og forerørsforsejlinger mv. - 44","m³/h ",15,0,0]
["Pumpe inkl. stigrør og forerørsforsejlinger mv. - 45","m³/h ",15,0,0]
["Pumpe inkl. stigrør og forerørsforsejlinger mv. - 46","m³/h ",15,0,0]
["Pumpe inkl. stigrør og forerørsforsejlinger mv. - 47","m³/h ",15,0,0]
["Pumpe inkl. stigrør og forerørsforsejlinger mv. - 48","m³/h ",15,0,0]
["Pumpe inkl. stigrør og forerørsforsejlinger mv. - 49","m³/h ",15,0,0]
["Pumpe inkl. stigrør og forerørsforsejlinger mv. - 50","m³/h ",15,0,0]
["Pumpe inkl. stigrør og forerørsforsejlinger mv. - 51","m³/h ",15,0,0]
["Pumpe inkl. stigrør og forerørsforsejlinger mv. - 52","m³/h ",15,0,0]
["Pumpe inkl. stigrør og forerørsforsejlinger mv. - 53","m³/h ",15,0,0]
["Pumpe inkl. stigrør og forerørsforsejlinger mv. - 54","m³/h ",15,0,0]
["Pumpe inkl. stigrør og forerørsforsejlinger mv. - 55","m³/h ",15,0,0]
["Pumpe inkl. stigrør og forerørsforsejlinger mv. - 56","m³/h ",15,0,0]
["Pumpe inkl. stigrør og forerørsforsejlinger mv. - 57","m³/h ",15,0,0]
["Pumpe inkl. stigrør og forerørsforsejlinger mv. - 58","m³/h ",15,0,0]
["Pumpe inkl. stigrør og forerørsforsejlinger mv. - 59","m³/h ",15,0,0]
["Pumpe inkl. stigrør og forerørsforsejlinger mv. - 60","m³/h ",15,0,0]
["Pumpe inkl. stigrør og forerørsforsejlinger mv. - 61","m³/h ",15,0,0]
["Pumpe inkl. stigrør og forerørsforsejlinger mv. - 62","m³/h ",15,0,0]
["Pumpe inkl. stigrør og forerørsforsejlinger mv. - 63","m³/h ",15,0,0]
["Pumpe inkl. stigrør og forerørsforsejlinger mv. - 64","m³/h ",15,0,0]
["Pumpe inkl. stigrør og forerørsforsejlinger mv. - 65","m³/h ",15,0,0]
["Pumpe inkl. stigrør og forerørsforsejlinger mv. - 66","m³/h ",15,0,0]
["Pumpe inkl. stigrør og forerørsforsejlinger mv. - 67","m³/h ",15,0,0]
["Pumpe inkl. stigrør og forerørsforsejlinger mv. - 68","m³/h ",15,0,0]
["Pumpe inkl. stigrør og forerørsforsejlinger mv. - 69","m³/h ",15,0,0]
["Pumpe inkl. stigrør og forerørsforsejlinger mv. - 70","m³/h ",15,0,0]
["Pumpe inkl. stigrør og forerørsforsejlinger mv. - 71","m³/h ",15,0,0]
["Pumpe inkl. stigrør og forerørsforsejlinger mv. - 72","m³/h ",15,0,0]
["Pumpe inkl. stigrør og forerørsforsejlinger mv. - 73","m³/h ",15,0,0]
["Pumpe inkl. stigrør og forerørsforsejlinger mv. - 74","m³/h ",15,0,0]
["Pumpe inkl. stigrør og forerørsforsejlinger mv. - 75","m³/h ",15,0,0]
["Pumpe inkl. stigrør og forerørsforsejlinger mv. - 76","m³/h ",15,0,0]
["Pumpe inkl. stigrør og forerørsforsejlinger mv. - 77","m³/h ",15,0,0]
["Pumpe inkl. stigrør og forerørsforsejlinger mv. - 78","m³/h ",15,0,0]
["Pumpe inkl. stigrør og forerørsforsejlinger mv. - 79","m³/h ",15,0,0]
["Pumpe inkl. stigrør og forerørsforsejlinger mv. - 80","m³/h ",15,0,0]
["Pumpe inkl. stigrør og forerørsforsejlinger mv. - 81","m³/h ",15,0,0]
["Pumpe inkl. stigrør og forerørsforsejlinger mv. - 82","m³/h ",15,0,0]
["Pumpe inkl. stigrør og forerørsforsejlinger mv. - 83","m³/h ",15,0,0]
["Pumpe inkl. stigrør og forerørsforsejlinger mv. - 84","m³/h ",15,0,0]
["Pumpe inkl. stigrør og forerørsforsejlinger mv. - 85","m³/h ",15,0,0]
["Pumpe inkl. stigrør og forerørsforsejlinger mv. - 86","m³/h ",15,0,0]
["Pumpe inkl. stigrør og forerørsforsejlinger mv. - 87","m³/h ",15,0,0]
["Pumpe inkl. stigrør og forerørsforsejlinger mv. - 88","m³/h ",15,0,0]
["Pumpe inkl. stigrør og forerørsforsejlinger mv. - 89","m³/h ",15,0,0]
["Pumpe inkl. stigrør og forerørsforsejlinger mv. - 90","m³/h ",15,0,0]
["Erstatninger (OBS ingen øst-tillæg eller øvrige tillæg) ","stk.",30,35,35]
["Hegn","stk.",15,0,0]
["Elanlæg","boring",20,35,35]
["SRO anlæg","boring",10,35,35]
["Råvandsledninger - Land"]
["Ø 50mm < Ledningsnet ≤ Ø110 mm","meter",75,19,19]
["Ø110 mm < Ledningsnet ≤ Ø 250 mm","meter",75,3593,3593]
["Ø 250 mm < Ledningsnet ≤ Ø 500mm","meter",75,{"$f":"2718+117","v":2835},{"$f":"2718+117","v":2835}]
["Ledningsnet > Ø 500 mm","meter",75,0,0]
["Råvandsledninger - By"]
["Ø 50mm < Ledningsnet ≤ Ø110 mm","meter",75,{"$f":"1038-9","v":1029},{"$f":"1038-9","v":1029}]
["Ø110 mm < Ledningsnet ≤ Ø 250 mm","meter",75,{"$f":"9250+271-957","v":8564},{"$f":"9250+271-957","v":8564}]
["Ø 250 mm < Ledningsnet ≤ Ø 500mm","meter",75,{"$f":"3677-49","v":3628},{"$f":"3677-49","v":3628}]
["Ledningsnet > Ø 500 mm","meter",75,0,0]
["Råvandsledninger - City"]
["Ø 50mm < Ledningsnet ≤ Ø110 mm","meter",75,0,0]
["Ø110 mm < Ledningsnet ≤ Ø 250 mm","meter",75,{"$f":"593+700","v":1293},{"$f":"593+700","v":1293}]
["Ø 250 mm < Ledningsnet ≤ Ø 500mm","meter",75,0,0]
["Ledningsnet > Ø 500 mm","meter",75,0,0]
["Vandværk 1"]
["Beluftningsanlæg, iltningstrappe, Konstruktioner","m³/h ",50,0,0]
["Beluftningsanlæg, iltningstrappe, Mek./EL","m³/h ",25,0,0]
["Beluftningsanlæg, ika-beluftning, Konstruktioner","m³/h ",50,0,0]
["Beluftningsanlæg, ika-beluftning, Mek./EL","m³/h ",25,0,0]
["Beluftningsanlæg, bundbeluftbning, Konstruktioner","m³/h ",50,0,0]
["Beluftningsanlæg, bundbeluftbning, Mek./EL","m³/h ",25,0,0]
["Beluftningsanlæg, rislebakke, Konstruktioner","m³/h ",50,0,0]
["Beluftningsanlæg, rislebakke, Mek./EL","m³/h ",25,0,0]
["Beluftningsanlæg, kompressorbeluftning","m³/h ",25,0,0]
["Beluftningsanlæg, ren ilt","m³/h ",25,200,200]
["Behandlingsanlæg, kalk anlæg","m³/h ",25,0,0]
["Behandlingsanlæg, luddosering","m³/h ",25,0,0]
["Filteranlæg, åbne filtre, enkelt filtrering, Konstruktioner","m³/h ",50,0,0]
["Filteranlæg, åbne filtre, enkelt filtrering, Mek./EL","m³/h ",25,0,0]
["Filteranlæg, åbne filtre, dobbelt filtrering, Konstruktioner","m³/h ",50,0,0]
["Filteranlæg, åbne filtre, dobbelt filtrering, Mek./EL","m³/h ",25,0,0]
["Filteranlæg, trykfiltre, enkelt filtrering","m³/h ",25,200,200]
["Filteranlæg, trykfiltre, dobbelt filtrering","m³/h ",25,0,0]
["Rentvandsbeholder  insitu støbt","m³",50,3100,3100]
["Rentvandsbeholder  element","m³",50,0,0]
["Udpumpningsanlæg, rentvandspumper på vandværk","m³/h ",25,700,700]
["Udpumpningsanlæg, frekvensomformer","kW",25,80,80]
["Udpumpningsanlæg, Hydrofor","liter",25,0,0]
["Skyllevand-/slamhåndteringsanlæg - lukkede betonbeholdere","m³",50,0,0]
["Skyllevand-/slamhåndteringsanl. - åbne med faste sider/bund","m³",50,80,80]
["Skyllevand-/slamhåndteringsanlæg - jordbassiner","m³",50,0,0]
["Skyllevandsbehandling, inkl. UV-filter mv., Mek./EL","m³/h.",25,0,0]
["Skyllevandsbehandling, inkl. UV-filter mv., SRO","m³/h.",10,0,0]
["Nødstrømsanlæg på vandværk","kW",25,275,275]
["Elanlæg og SRO-anlæg - vandværk, Elanlæg","m³/h.",25,700,700]
["Elanlæg og SRO-anlæg - vandværk, SRO","m³/h.",10,700,700]
["Vandværk 2"]
["Beluftningsanlæg, iltningstrappe, Konstruktioner","m³/h ",50,200,200]
["Beluftningsanlæg, iltningstrappe, Mek./EL","m³/h ",25,0,0]
["Beluftningsanlæg, ika-beluftning, Konstruktioner","m³/h ",50,0,0]
["Beluftningsanlæg, ika-beluftning, Mek./EL","m³/h ",25,0,0]
["Beluftningsanlæg, bundbeluftbning, Konstruktioner","m³/h ",50,0,0]
["Beluftningsanlæg, bundbeluftbning, Mek./EL","m³/h ",25,0,0]
["Beluftningsanlæg, rislebakke, Konstruktioner","m³/h ",50,0,0]
["Beluftningsanlæg, rislebakke, Mek./EL","m³/h ",25,0,0]
["Beluftningsanlæg, kompressorbeluftning","m³/h ",25,0,0]
["Beluftningsanlæg, ren ilt","m³/h ",25,0,0]
["Behandlingsanlæg, kalk anlæg","m³/h ",25,130,130]
["Behandlingsanlæg, luddosering","m³/h ",25,0,0]
["Filteranlæg, åbne filtre, enkelt filtrering, Konstruktioner","m³/h ",50,130,130]
["Filteranlæg, åbne filtre, enkelt filtrering, Mek./EL","m³/h ",25,0,0]
["Filteranlæg, åbne filtre, dobbelt filtrering, Konstruktioner","m³/h ",50,0,0]
["Filteranlæg, åbne filtre, dobbelt filtrering, Mek./EL","m³/h ",25,0,0]
["Filteranlæg, trykfiltre, enkelt filtrering","m³/h ",25,0,0]
["Filteranlæg, trykfiltre, dobbelt filtrering","m³/h ",25,0,0]
["Rentvandsbeholder  insitu støbt","m³",50,1000,1000]
["Rentvandsbeholder  element","m³",50,0,0]
["Udpumpningsanlæg, rentvandspumper på vandværk","m³/h ",25,250,250]
["Udpumpningsanlæg, frekvensomformer","kW",25,30,30]
["Udpumpningsanlæg, Hydrofor","liter",25,0,0]
["Skyllevand-/slamhåndteringsanlæg - lukkede betonbeholdere","m³",50,0,0]
["Skyllevand-/slamhåndteringsanl. - åbne med faste sider/bund","m³",50,15,15]
["Skyllevand-/slamhåndteringsanlæg - jordbassiner","m³",50,0,0]
["Skyllevandsbehandling, inkl. UV-filter mv., Mek./EL","m³/h.",25,0,0]
["Skyllevandsbehandling, inkl. UV-filter mv., SRO","m³/h.",10,0,0]
["Nødstrømsanlæg på vandværk","kW",25,100,100]
["Elanlæg og SRO-anlæg - vandværk, Elanlæg","m³/h.",25,250,250]
["Elanlæg og SRO-anlæg - vandværk, SRO","m³/h.",10,250,250]
["Vandværk 3"]
["Beluftningsanlæg, iltningstrappe, Konstruktioner","m³/h ",50,0,0]
["Beluftningsanlæg, iltningstrappe, Mek./EL","m³/h ",25,0,0]
["Beluftningsanlæg, ika-beluftning, Konstruktioner","m³/h ",50,0,0]
["Beluftningsanlæg, ika-beluftning, Mek./EL","m³/h ",25,0,0]
["Beluftningsanlæg, bundbeluftbning, Konstruktioner","m³/h ",50,0,0]
["Beluftningsanlæg, bundbeluftbning, Mek./EL","m³/h ",25,0,0]
["Beluftningsanlæg, rislebakke, Konstruktioner","m³/h ",50,0,0]
["Beluftningsanlæg, rislebakke, Mek./EL","m³/h ",25,0,0]
["Beluftningsanlæg, kompressorbeluftning","m³/h ",25,0,0]
["Beluftningsanlæg, ren ilt","m³/h ",25,0,0]
["Behandlingsanlæg, kalk anlæg","m³/h ",25,0,0]
["Behandlingsanlæg, luddosering","m³/h ",25,0,0]
["Filteranlæg, åbne filtre, enkelt filtrering, Konstruktioner","m³/h ",50,0,0]
["Filteranlæg, åbne filtre, enkelt filtrering, Mek./EL","m³/h ",25,0,0]
["Filteranlæg, åbne filtre, dobbelt filtrering, Konstruktioner","m³/h ",50,0,0]
["Filteranlæg, åbne filtre, dobbelt filtrering, Mek./EL","m³/h ",25,0,0]
["Filteranlæg, trykfiltre, enkelt filtrering","m³/h ",25,0,0]
["Filteranlæg, trykfiltre, dobbelt filtrering","m³/h ",25,0,0]
["Rentvandsbeholder  insitu støbt","m³",50,0,0]
["Rentvandsbeholder  element","m³",50,0,0]
["Udpumpningsanlæg, rentvandspumper på vandværk","m³/h ",25,400,400]
["Udpumpningsanlæg, frekvensomformer","kW",25,20,20]
["Udpumpningsanlæg, Hydrofor","liter",25,500,500]
["Skyllevand-/slamhåndteringsanlæg - lukkede betonbeholdere","m³",50,0,0]
["Skyllevand-/slamhåndteringsanl. - åbne med faste sider/bund","m³",50,0,0]
["Skyllevand-/slamhåndteringsanlæg - jordbassiner","m³",50,0,0]
["Skyllevandsbehandling, inkl. UV-filter mv., Mek./EL","m³/h.",25,0,0]
["Skyllevandsbehandling, inkl. UV-filter mv., SRO","m³/h.",10,0,0]
["Nødstrømsanlæg på vandværk","kW",25,0,0]
["Elanlæg og SRO-anlæg - vandværk, Elanlæg","m³/h.",25,400,400]
["Elanlæg og SRO-anlæg - vandværk, SRO","m³/h.",10,400,400]
["Vandværk 4"]
["Beluftningsanlæg, iltningstrappe, Konstruktioner","m³/h ",50,0,0]
["Beluftningsanlæg, iltningstrappe, Mek./EL","m³/h ",25,0,0]
["Beluftningsanlæg, ika-beluftning, Konstruktioner","m³/h ",50,0,0]
["Beluftningsanlæg, ika-beluftning, Mek./EL","m³/h ",25,0,0]
["Beluftningsanlæg, bundbeluftbning, Konstruktioner","m³/h ",50,0,0]
["Beluftningsanlæg, bundbeluftbning, Mek./EL","m³/h ",25,0,0]
["Beluftningsanlæg, rislebakke, Konstruktioner","m³/h ",50,0,0]
["Beluftningsanlæg, rislebakke, Mek./EL","m³/h ",25,0,0]
["Beluftningsanlæg, kompressorbeluftning","m³/h ",25,0,0]
["Beluftningsanlæg, ren ilt","m³/h ",25,0,0]
["Behandlingsanlæg, kalk anlæg","m³/h ",25,0,0]
["Behandlingsanlæg, luddosering","m³/h ",25,0,0]
["Filteranlæg, åbne filtre, enkelt filtrering, Konstruktioner","m³/h ",50,0,0]
["Filteranlæg, åbne filtre, enkelt filtrering, Mek./EL","m³/h ",25,0,0]
["Filteranlæg, åbne filtre, dobbelt filtrering, Konstruktioner","m³/h ",50,0,0]
["Filteranlæg, åbne filtre, dobbelt filtrering, Mek./EL","m³/h ",25,0,0]
["Filteranlæg, trykfiltre, enkelt filtrering","m³/h ",25,0,0]
["Filteranlæg, trykfiltre, dobbelt filtrering","m³/h ",25,0,0]
["Rentvandsbeholder  insitu støbt","m³",50,0,0]
["Rentvandsbeholder  element","m³",50,0,0]
["Udpumpningsanlæg, rentvandspumper på vandværk","m³/h ",25,250,250]
["Udpumpningsanlæg, frekvensomformer","kW",25,20,20]
["Udpumpningsanlæg, Hydrofor","liter",25,0,0]
["Skyllevand-/slamhåndteringsanlæg - lukkede betonbeholdere","m³",50,0,0]
["Skyllevand-/slamhåndteringsanl. - åbne med faste sider/bund","m³",50,0,0]
["Skyllevand-/slamhåndteringsanlæg - jordbassiner","m³",50,0,0]
["Skyllevandsbehandling, inkl. UV-filter mv., Mek./EL","m³/h.",25,0,0]
["Skyllevandsbehandling, inkl. UV-filter mv., SRO","m³/h.",10,0,0]
["Nødstrømsanlæg på vandværk","kW",25,0,0]
["Elanlæg og SRO-anlæg - vandværk, Elanlæg","m³/h.",25,250,250]
["Elanlæg og SRO-anlæg - vandværk, SRO","m³/h.",10,250,250]
["Vandværk 5"]
["Beluftningsanlæg, iltningstrappe, Konstruktioner","m³/h ",50,0,0]
["Beluftningsanlæg, iltningstrappe, Mek./EL","m³/h ",25,0,0]
["Beluftningsanlæg, ika-beluftning, Konstruktioner","m³/h ",50,0,0]
["Beluftningsanlæg, ika-beluftning, Mek./EL","m³/h ",25,0,0]
["Beluftningsanlæg, bundbeluftbning, Konstruktioner","m³/h ",50,0,0]
["Beluftningsanlæg, bundbeluftbning, Mek./EL","m³/h ",25,0,0]
["Beluftningsanlæg, rislebakke, Konstruktioner","m³/h ",50,0,0]
["Beluftningsanlæg, rislebakke, Mek./EL","m³/h ",25,0,0]
["Beluftningsanlæg, kompressorbeluftning","m³/h ",25,0,0]
["Beluftningsanlæg, ren ilt","m³/h ",25,0,0]
["Behandlingsanlæg, kalk anlæg","m³/h ",25,0,0]
["Behandlingsanlæg, luddosering","m³/h ",25,0,0]
["Filteranlæg, åbne filtre, enkelt filtrering, Konstruktioner","m³/h ",50,0,0]
["Filteranlæg, åbne filtre, enkelt filtrering, Mek./EL","m³/h ",25,0,0]
["Filteranlæg, åbne filtre, dobbelt filtrering, Konstruktioner","m³/h ",50,0,0]
["Filteranlæg, åbne filtre, dobbelt filtrering, Mek./EL","m³/h ",25,0,0]
["Filteranlæg, trykfiltre, enkelt filtrering","m³/h ",25,0,0]
["Filteranlæg, trykfiltre, dobbelt filtrering","m³/h ",25,0,0]
["Rentvandsbeholder  insitu støbt","m³",50,0,0]
["Rentvandsbeholder  element","m³",50,0,0]
["Udpumpningsanlæg, rentvandspumper på vandværk","m³/h ",25,300,300]
["Udpumpningsanlæg, frekvensomformer","kW",25,0,0]
["Udpumpningsanlæg, Hydrofor","liter",25,0,0]
["Skyllevand-/slamhåndteringsanlæg - lukkede betonbeholdere","m³",50,0,0]
["Skyllevand-/slamhåndteringsanl. - åbne med faste sider/bund","m³",50,0,0]
["Skyllevand-/slamhåndteringsanlæg - jordbassiner","m³",50,0,0]
["Skyllevandsbehandling, inkl. UV-filter mv., Mek./EL","m³/h.",25,0,0]
["Skyllevandsbehandling, inkl. UV-filter mv., SRO","m³/h.",10,0,0]
["Nødstrømsanlæg på vandværk","kW",25,0,0]
["Elanlæg og SRO-anlæg - vandværk, Elanlæg","m³/h.",25,300,300]
["Elanlæg og SRO-anlæg - vandværk, SRO","m³/h.",10,300,300]
["Vandværk 6"]
["Beluftningsanlæg, iltningstrappe, Konstruktioner","m³/h ",50,0,0]
["Beluftningsanlæg, iltningstrappe, Mek./EL","m³/h ",25,0,0]
["Beluftningsanlæg, ika-beluftning, Konstruktioner","m³/h ",50,0,0]
["Beluftningsanlæg, ika-beluftning, Mek./EL","m³/h ",25,0,0]
["Beluftningsanlæg, bundbeluftbning, Konstruktioner","m³/h ",50,0,0]
["Beluftningsanlæg, bundbeluftbning, Mek./EL","m³/h ",25,0,0]
["Beluftningsanlæg, rislebakke, Konstruktioner","m³/h ",50,0,0]
["Beluftningsanlæg, rislebakke, Mek./EL","m³/h ",25,0,0]
["Beluftningsanlæg, kompressorbeluftning","m³/h ",25,0,0]
["Beluftningsanlæg, ren ilt","m³/h ",25,0,0]
["Behandlingsanlæg, kalk anlæg","m³/h ",25,0,0]
["Behandlingsanlæg, luddosering","m³/h ",25,0,0]
["Filteranlæg, åbne filtre, enkelt filtrering, Konstruktioner","m³/h ",50,0,0]
["Filteranlæg, åbne filtre, enkelt filtrering, Mek./EL","m³/h ",25,0,0]
["Filteranlæg, åbne filtre, dobbelt filtrering, Konstruktioner","m³/h ",50,0,0]
["Filteranlæg, åbne filtre, dobbelt filtrering, Mek./EL","m³/h ",25,0,0]
["Filteranlæg, trykfiltre, enkelt filtrering","m³/h ",25,0,0]
["Filteranlæg, trykfiltre, dobbelt filtrering","m³/h ",25,0,0]
["Rentvandsbeholder  insitu støbt","m³",50,0,0]
["Rentvandsbeholder  element","m³",50,0,0]
["Udpumpningsanlæg, rentvandspumper på vandværk","m³/h ",25,200,200]
["Udpumpningsanlæg, frekvensomformer","kW",25,0,0]
["Udpumpningsanlæg, Hydrofor","liter",25,0,0]
["Skyllevand-/slamhåndteringsanlæg - lukkede betonbeholdere","m³",50,0,0]
["Skyllevand-/slamhåndteringsanl. - åbne med faste sider/bund","m³",50,0,0]
["Skyllevand-/slamhåndteringsanlæg - jordbassiner","m³",50,0,0]
["Skyllevandsbehandling, inkl. UV-filter mv., Mek./EL","m³/h.",25,0,0]
["Skyllevandsbehandling, inkl. UV-filter mv., SRO","m³/h.",10,0,0]
["Nødstrømsanlæg på vandværk","kW",25,88,88]
["Elanlæg og SRO-anlæg - vandværk, Elanlæg","m³/h.",25,200,200]
["Elanlæg og SRO-anlæg - vandværk, SRO","m³/h.",10,200,200]
["Vandværk 7"]
["Beluftningsanlæg, iltningstrappe, Konstruktioner","m³/h ",50,0,0]
["Beluftningsanlæg, iltningstrappe, Mek./EL","m³/h ",25,0,0]
["Beluftningsanlæg, ika-beluftning, Konstruktioner","m³/h ",50,0,0]
["Beluftningsanlæg, ika-beluftning, Mek./EL","m³/h ",25,0,0]
["Beluftningsanlæg, bundbeluftbning, Konstruktioner","m³/h ",50,0,0]
["Beluftningsanlæg, bundbeluftbning, Mek./EL","m³/h ",25,0,0]
["Beluftningsanlæg, rislebakke, Konstruktioner","m³/h ",50,0,0]
["Beluftningsanlæg, rislebakke, Mek./EL","m³/h ",25,0,0]
["Beluftningsanlæg, kompressorbeluftning","m³/h ",25,0,0]
["Beluftningsanlæg, ren ilt","m³/h ",25,0,0]
["Behandlingsanlæg, kalk anlæg","m³/h ",25,0,0]
["Behandlingsanlæg, luddosering","m³/h ",25,0,0]
["Filteranlæg, åbne filtre, enkelt filtrering, Konstruktioner","m³/h ",50,0,0]
["Filteranlæg, åbne filtre, enkelt filtrering, Mek./EL","m³/h ",25,0,0]
["Filteranlæg, åbne filtre, dobbelt filtrering, Konstruktioner","m³/h ",50,0,0]
["Filteranlæg, åbne filtre, dobbelt filtrering, Mek./EL","m³/h ",25,0,0]
["Filteranlæg, trykfiltre, enkelt filtrering","m³/h ",25,0,0]
["Filteranlæg, trykfiltre, dobbelt filtrering","m³/h ",25,0,0]
["Rentvandsbeholder  insitu støbt","m³",50,0,0]
["Rentvandsbeholder  element","m³",50,0,0]
["Udpumpningsanlæg, rentvandspumper på vandværk","m³/h ",25,60,60]
["Udpumpningsanlæg, frekvensomformer","kW",25,15,15]
["Udpumpningsanlæg, Hydrofor","liter",25,0,0]
["Skyllevand-/slamhåndteringsanlæg - lukkede betonbeholdere","m³",50,0,0]
["Skyllevand-/slamhåndteringsanl. - åbne med faste sider/bund","m³",50,0,0]
["Skyllevand-/slamhåndteringsanlæg - jordbassiner","m³",50,0,0]
["Skyllevandsbehandling, inkl. UV-filter mv., Mek./EL","m³/h.",25,0,0]
["Skyllevandsbehandling, inkl. UV-filter mv., SRO","m³/h.",10,0,0]
["Nødstrømsanlæg på vandværk","kW",25,0,0]
["Elanlæg og SRO-anlæg - vandværk, Elanlæg","m³/h.",25,60,60]
["Elanlæg og SRO-anlæg - vandværk, SRO","m³/h.",10,60,60]
["Vandværk 8"]
["Beluftningsanlæg, iltningstrappe, Konstruktioner","m³/h ",50,0]
["Beluftningsanlæg, iltningstrappe, Mek./EL","m³/h ",25,0]
["Beluftningsanlæg, ika-beluftning, Konstruktioner","m³/h ",50,0]
["Beluftningsanlæg, ika-beluftning, Mek./EL","m³/h ",25,0]
["Beluftningsanlæg, bundbeluftbning, Konstruktioner","m³/h ",50,0]
["Beluftningsanlæg, bundbeluftbning, Mek./EL","m³/h ",25,0]
["Beluftningsanlæg, rislebakke, Konstruktioner","m³/h ",50,0]
["Beluftningsanlæg, rislebakke, Mek./EL","m³/h ",25,0]
["Beluftningsanlæg, kompressorbeluftning","m³/h ",25,0]
["Beluftningsanlæg, ren ilt","m³/h ",25,0]
["Behandlingsanlæg, kalk anlæg","m³/h ",25,0]
["Behandlingsanlæg, luddosering","m³/h ",25,0]
["Filteranlæg, åbne filtre, enkelt filtrering, Konstruktioner","m³/h ",50,0]
["Filteranlæg, åbne filtre, enkelt filtrering, Mek./EL","m³/h ",25,0]
["Filteranlæg, åbne filtre, dobbelt filtrering, Konstruktioner","m³/h ",50,0]
["Filteranlæg, åbne filtre, dobbelt filtrering, Mek./EL","m³/h ",25,0]
["Filteranlæg, trykfiltre, enkelt filtrering","m³/h ",25,0]
["Filteranlæg, trykfiltre, dobbelt filtrering","m³/h ",25,0]
["Rentvandsbeholder  insitu støbt","m³",50,0]
["Rentvandsbeholder  element","m³",50,0]
["Udpumpningsanlæg, rentvandspumper på vandværk","m³/h ",25,0]
["Udpumpningsanlæg, frekvensomformer","kW",25,0]
["Udpumpningsanlæg, Hydrofor","liter",25,0]
["Skyllevand-/slamhåndteringsanlæg - lukkede betonbeholdere","m³",50,0]
["Skyllevand-/slamhåndteringsanl. - åbne med faste sider/bund","m³",50,0]
["Skyllevand-/slamhåndteringsanlæg - jordbassiner","m³",50,0]
["Skyllevandsbehandling, inkl. UV-filter mv., Mek./EL","m³/h.",25,0]
["Skyllevandsbehandling, inkl. UV-filter mv., SRO","m³/h.",10,0]
["Nødstrømsanlæg på vandværk","kW",25,0]
["Elanlæg og SRO-anlæg - vandværk, Elanlæg","m³/h.",25,0]
["Elanlæg og SRO-anlæg - vandværk, SRO","m³/h.",10,0]
["Vandværk 9"]
["Beluftningsanlæg, iltningstrappe, Konstruktioner","m³/h ",50,0]
["Beluftningsanlæg, iltningstrappe, Mek./EL","m³/h ",25,0]
["Beluftningsanlæg, ika-beluftning, Konstruktioner","m³/h ",50,0]
["Beluftningsanlæg, ika-beluftning, Mek./EL","m³/h ",25,0]
["Beluftningsanlæg, bundbeluftbning, Konstruktioner","m³/h ",50,0]
["Beluftningsanlæg, bundbeluftbning, Mek./EL","m³/h ",25,0]
["Beluftningsanlæg, rislebakke, Konstruktioner","m³/h ",50,0]
["Beluftningsanlæg, rislebakke, Mek./EL","m³/h ",25,0]
["Beluftningsanlæg, kompressorbeluftning","m³/h ",25,0]
["Beluftningsanlæg, ren ilt","m³/h ",25,0]
["Behandlingsanlæg, kalk anlæg","m³/h ",25,0]
["Behandlingsanlæg, luddosering","m³/h ",25,0]
["Filteranlæg, åbne filtre, enkelt filtrering, Konstruktioner","m³/h ",50,0]
["Filteranlæg, åbne filtre, enkelt filtrering, Mek./EL","m³/h ",25,0]
["Filteranlæg, åbne filtre, dobbelt filtrering, Konstruktioner","m³/h ",50,0]
["Filteranlæg, åbne filtre, dobbelt filtrering, Mek./EL","m³/h ",25,0]
["Filteranlæg, trykfiltre, enkelt filtrering","m³/h ",25,0]
["Filteranlæg, trykfiltre, dobbelt filtrering","m³/h ",25,0]
["Rentvandsbeholder  insitu støbt","m³",50,0]
["Rentvandsbeholder  element","m³",50,0]
["Udpumpningsanlæg, rentvandspumper på vandværk","m³/h ",25,0]
["Udpumpningsanlæg, frekvensomformer","kW",25,0]
["Udpumpningsanlæg, Hydrofor","liter",25,0]
["Skyllevand-/slamhåndteringsanlæg - lukkede betonbeholdere","m³",50,0]
["Skyllevand-/slamhåndteringsanl. - åbne med faste sider/bund","m³",50,0]
["Skyllevand-/slamhåndteringsanlæg - jordbassiner","m³",50,0]
["Skyllevandsbehandling, inkl. UV-filter mv., Mek./EL","m³/h.",25,0]
["Skyllevandsbehandling, inkl. UV-filter mv., SRO","m³/h.",10,0]
["Nødstrømsanlæg på vandværk","kW",25,0]
["Elanlæg og SRO-anlæg - vandværk, Elanlæg","m³/h.",25,0]
["Elanlæg og SRO-anlæg - vandværk, SRO","m³/h.",10,0]
["Vandværk 10"]
["Beluftningsanlæg, iltningstrappe, Konstruktioner","m³/h ",50,0]
["Beluftningsanlæg, iltningstrappe, Mek./EL","m³/h ",25,0]
["Beluftningsanlæg, ika-beluftning, Konstruktioner","m³/h ",50,0]
["Beluftningsanlæg, ika-beluftning, Mek./EL","m³/h ",25,0]
["Beluftningsanlæg, bundbeluftbning, Konstruktioner","m³/h ",50,0]
["Beluftningsanlæg, bundbeluftbning, Mek./EL","m³/h ",25,0]
["Beluftningsanlæg, rislebakke, Konstruktioner","m³/h ",50,0]
["Beluftningsanlæg, rislebakke, Mek./EL","m³/h ",25,0]
["Beluftningsanlæg, kompressorbeluftning","m³/h ",25,0]
["Beluftningsanlæg, ren ilt","m³/h ",25,0]
["Behandlingsanlæg, kalk anlæg","m³/h ",25,0]
["Behandlingsanlæg, luddosering","m³/h ",25,0]
["Filteranlæg, åbne filtre, enkelt filtrering, Konstruktioner","m³/h ",50,0]
["Filteranlæg, åbne filtre, enkelt filtrering, Mek./EL","m³/h ",25,0]
["Filteranlæg, åbne filtre, dobbelt filtrering, Konstruktioner","m³/h ",50,0]
["Filteranlæg, åbne filtre, dobbelt filtrering, Mek./EL","m³/h ",25,0]
["Filteranlæg, trykfiltre, enkelt filtrering","m³/h ",25,0]
["Filteranlæg, trykfiltre, dobbelt filtrering","m³/h ",25,0]
["Rentvandsbeholder  insitu støbt","m³",50,0]
["Rentvandsbeholder  element","m³",50,0]
["Udpumpningsanlæg, rentvandspumper på vandværk","m³/h ",25,0]
["Udpumpningsanlæg, frekvensomformer","kW",25,0]
["Udpumpningsanlæg, Hydrofor","liter",25,0]
["Skyllevand-/slamhåndteringsanlæg - lukkede betonbeholdere","m³",50,0]
["Skyllevand-/slamhåndteringsanl. - åbne med faste sider/bund","m³",50,0]
["Skyllevand-/slamhåndteringsanlæg - jordbassiner","m³",50,0]
["Skyllevandsbehandling, inkl. UV-filter mv., Mek./EL","m³/h.",25,0]
["Skyllevandsbehandling, inkl. UV-filter mv., SRO","m³/h.",10,0]
["Nødstrømsanlæg på vandværk","kW",25,0]
["Elanlæg og SRO-anlæg - vandværk, Elanlæg","m³/h.",25,0]
["Elanlæg og SRO-anlæg - vandværk, SRO","m³/h.",10,0]
["Vandværk 11"]
["Beluftningsanlæg, iltningstrappe, Konstruktioner","m³/h ",50,0]
["Beluftningsanlæg, iltningstrappe, Mek./EL","m³/h ",25,0]
["Beluftningsanlæg, ika-beluftning, Konstruktioner","m³/h ",50,0]
["Beluftningsanlæg, ika-beluftning, Mek./EL","m³/h ",25,0]
["Beluftningsanlæg, bundbeluftbning, Konstruktioner","m³/h ",50,0]
["Beluftningsanlæg, bundbeluftbning, Mek./EL","m³/h ",25,0]
["Beluftningsanlæg, rislebakke, Konstruktioner","m³/h ",50,0]
["Beluftningsanlæg, rislebakke, Mek./EL","m³/h ",25,0]
["Beluftningsanlæg, kompressorbeluftning","m³/h ",25,0]
["Beluftningsanlæg, ren ilt","m³/h ",25,0]
["Behandlingsanlæg, kalk anlæg","m³/h ",25,0]
["Behandlingsanlæg, luddosering","m³/h ",25,0]
["Filteranlæg, åbne filtre, enkelt filtrering, Konstruktioner","m³/h ",50,0]
["Filteranlæg, åbne filtre, enkelt filtrering, Mek./EL","m³/h ",25,0]
["Filteranlæg, åbne filtre, dobbelt filtrering, Konstruktioner","m³/h ",50,0]
["Filteranlæg, åbne filtre, dobbelt filtrering, Mek./EL","m³/h ",25,0]
["Filteranlæg, trykfiltre, enkelt filtrering","m³/h ",25,0]
["Filteranlæg, trykfiltre, dobbelt filtrering","m³/h ",25,0]
["Rentvandsbeholder  insitu støbt","m³",50,0]
["Rentvandsbeholder  element","m³",50,0]
["Udpumpningsanlæg, rentvandspumper på vandværk","m³/h ",25,0]
["Udpumpningsanlæg, frekvensomformer","kW",25,0]
["Udpumpningsanlæg, Hydrofor","liter",25,0]
["Skyllevand-/slamhåndteringsanlæg - lukkede betonbeholdere","m³",50,0]
["Skyllevand-/slamhåndteringsanl. - åbne med faste sider/bund","m³",50,0]
["Skyllevand-/slamhåndteringsanlæg - jordbassiner","m³",50,0]
["Skyllevandsbehandling, inkl. UV-filter mv., Mek./EL","m³/h.",25,0]
["Skyllevandsbehandling, inkl. UV-filter mv., SRO","m³/h.",10,0]
["Nødstrømsanlæg på vandværk","kW",25,0]
["Elanlæg og SRO-anlæg - vandværk, Elanlæg","m³/h.",25,0]
["Elanlæg og SRO-anlæg - vandværk, SRO","m³/h.",10,0]
["Vandværk 12"]
["Beluftningsanlæg, iltningstrappe, Konstruktioner","m³/h ",50,0]
["Beluftningsanlæg, iltningstrappe, Mek./EL","m³/h ",25,0]
["Beluftningsanlæg, ika-beluftning, Konstruktioner","m³/h ",50,0]
["Beluftningsanlæg, ika-beluftning, Mek./EL","m³/h ",25,0]
["Beluftningsanlæg, bundbeluftbning, Konstruktioner","m³/h ",50,0]
["Beluftningsanlæg, bundbeluftbning, Mek./EL","m³/h ",25,0]
["Beluftningsanlæg, rislebakke, Konstruktioner","m³/h ",50,0]
["Beluftningsanlæg, rislebakke, Mek./EL","m³/h ",25,0]
["Beluftningsanlæg, kompressorbeluftning","m³/h ",25,0]
["Beluftningsanlæg, ren ilt","m³/h ",25,0]
["Behandlingsanlæg, kalk anlæg","m³/h ",25,0]
["Behandlingsanlæg, luddosering","m³/h ",25,0]
["Filteranlæg, åbne filtre, enkelt filtrering, Konstruktioner","m³/h ",50,0]
["Filteranlæg, åbne filtre, enkelt filtrering, Mek./EL","m³/h ",25,0]
["Filteranlæg, åbne filtre, dobbelt filtrering, Konstruktioner","m³/h ",50,0]
["Filteranlæg, åbne filtre, dobbelt filtrering, Mek./EL","m³/h ",25,0]
["Filteranlæg, trykfiltre, enkelt filtrering","m³/h ",25,0]
["Filteranlæg, trykfiltre, dobbelt filtrering","m³/h ",25,0]
["Rentvandsbeholder  insitu støbt","m³",50,0]
["Rentvandsbeholder  element","m³",50,0]
["Udpumpningsanlæg, rentvandspumper på vandværk","m³/h ",25,0]
["Udpumpningsanlæg, frekvensomformer","kW",25,0]
["Udpumpningsanlæg, Hydrofor","liter",25,0]
["Skyllevand-/slamhåndteringsanlæg - lukkede betonbeholdere","m³",50,0]
["Skyllevand-/slamhåndteringsanl. - åbne med faste sider/bund","m³",50,0]
["Skyllevand-/slamhåndteringsanlæg - jordbassiner","m³",50,0]
["Skyllevandsbehandling, inkl. UV-filter mv., Mek./EL","m³/h.",25,0]
["Skyllevandsbehandling, inkl. UV-filter mv., SRO","m³/h.",10,0]
["Nødstrømsanlæg på vandværk","kW",25,0]
["Elanlæg og SRO-anlæg - vandværk, Elanlæg","m³/h.",25,0]
["Elanlæg og SRO-anlæg - vandværk, SRO","m³/h.",10,0]
["Vandværk 13"]
["Beluftningsanlæg, iltningstrappe, Konstruktioner","m³/h ",50,0]
["Beluftningsanlæg, iltningstrappe, Mek./EL","m³/h ",25,0]
["Beluftningsanlæg, ika-beluftning, Konstruktioner","m³/h ",50,0]
["Beluftningsanlæg, ika-beluftning, Mek./EL","m³/h ",25,0]
["Beluftningsanlæg, bundbeluftbning, Konstruktioner","m³/h ",50,0]
["Beluftningsanlæg, bundbeluftbning, Mek./EL","m³/h ",25,0]
["Beluftningsanlæg, rislebakke, Konstruktioner","m³/h ",50,0]
["Beluftningsanlæg, rislebakke, Mek./EL","m³/h ",25,0]
["Beluftningsanlæg, kompressorbeluftning","m³/h ",25,0]
["Beluftningsanlæg, ren ilt","m³/h ",25,0]
["Behandlingsanlæg, kalk anlæg","m³/h ",25,0]
["Behandlingsanlæg, luddosering","m³/h ",25,0]
["Filteranlæg, åbne filtre, enkelt filtrering, Konstruktioner","m³/h ",50,0]
["Filteranlæg, åbne filtre, enkelt filtrering, Mek./EL","m³/h ",25,0]
["Filteranlæg, åbne filtre, dobbelt filtrering, Konstruktioner","m³/h ",50,0]
["Filteranlæg, åbne filtre, dobbelt filtrering, Mek./EL","m³/h ",25,0]
["Filteranlæg, trykfiltre, enkelt filtrering","m³/h ",25,0]
["Filteranlæg, trykfiltre, dobbelt filtrering","m³/h ",25,0]
["Rentvandsbeholder  insitu støbt","m³",50,0]
["Rentvandsbeholder  element","m³",50,0]
["Udpumpningsanlæg, rentvandspumper på vandværk","m³/h ",25,0]
["Udpumpningsanlæg, frekvensomformer","kW",25,0]
["Udpumpningsanlæg, Hydrofor","liter",25,0]
["Skyllevand-/slamhåndteringsanlæg - lukkede betonbeholdere","m³",50,0]
["Skyllevand-/slamhåndteringsanl. - åbne med faste sider/bund","m³",50,0]
["Skyllevand-/slamhåndteringsanlæg - jordbassiner","m³",50,0]
["Skyllevandsbehandling, inkl. UV-filter mv., Mek./EL","m³/h.",25,0]
["Skyllevandsbehandling, inkl. UV-filter mv., SRO","m³/h.",10,0]
["Nødstrømsanlæg på vandværk","kW",25,0]
["Elanlæg og SRO-anlæg - vandværk, Elanlæg","m³/h.",25,0]
["Elanlæg og SRO-anlæg - vandværk, SRO","m³/h.",10,0]
["Vandværk 14"]
["Beluftningsanlæg, iltningstrappe, Konstruktioner","m³/h ",50,0]
["Beluftningsanlæg, iltningstrappe, Mek./EL","m³/h ",25,0]
["Beluftningsanlæg, ika-beluftning, Konstruktioner","m³/h ",50,0]
["Beluftningsanlæg, ika-beluftning, Mek./EL","m³/h ",25,0]
["Beluftningsanlæg, bundbeluftbning, Konstruktioner","m³/h ",50,0]
["Beluftningsanlæg, bundbeluftbning, Mek./EL","m³/h ",25,0]
["Beluftningsanlæg, rislebakke, Konstruktioner","m³/h ",50,0]
["Beluftningsanlæg, rislebakke, Mek./EL","m³/h ",25,0]
["Beluftningsanlæg, kompressorbeluftning","m³/h ",25,0]
["Beluftningsanlæg, ren ilt","m³/h ",25,0]
["Behandlingsanlæg, kalk anlæg","m³/h ",25,0]
["Behandlingsanlæg, luddosering","m³/h ",25,0]
["Filteranlæg, åbne filtre, enkelt filtrering, Konstruktioner","m³/h ",50,0]
["Filteranlæg, åbne filtre, enkelt filtrering, Mek./EL","m³/h ",25,0]
["Filteranlæg, åbne filtre, dobbelt filtrering, Konstruktioner","m³/h ",50,0]
["Filteranlæg, åbne filtre, dobbelt filtrering, Mek./EL","m³/h ",25,0]
["Filteranlæg, trykfiltre, enkelt filtrering","m³/h ",25,0]
["Filteranlæg, trykfiltre, dobbelt filtrering","m³/h ",25,0]
["Rentvandsbeholder  insitu støbt","m³",50,0]
["Rentvandsbeholder  element","m³",50,0]
["Udpumpningsanlæg, rentvandspumper på vandværk","m³/h ",25,0]
["Udpumpningsanlæg, frekvensomformer","kW",25,0]
["Udpumpningsanlæg, Hydrofor","liter",25,0]
["Skyllevand-/slamhåndteringsanlæg - lukkede betonbeholdere","m³",50,0]
["Skyllevand-/slamhåndteringsanl. - åbne med faste sider/bund","m³",50,0]
["Skyllevand-/slamhåndteringsanlæg - jordbassiner","m³",50,0]
["Skyllevandsbehandling, inkl. UV-filter mv., Mek./EL","m³/h.",25,0]
["Skyllevandsbehandling, inkl. UV-filter mv., SRO","m³/h.",10,0]
["Nødstrømsanlæg på vandværk","kW",25,0]
["Elanlæg og SRO-anlæg - vandværk, Elanlæg","m³/h.",25,0]
["Elanlæg og SRO-anlæg - vandværk, SRO","m³/h.",10,0]
["Vandværk 15"]
["Beluftningsanlæg, iltningstrappe, Konstruktioner","m³/h ",50,0]
["Beluftningsanlæg, iltningstrappe, Mek./EL","m³/h ",25,0]
["Beluftningsanlæg, ika-beluftning, Konstruktioner","m³/h ",50,0]
["Beluftningsanlæg, ika-beluftning, Mek./EL","m³/h ",25,0]
["Beluftningsanlæg, bundbeluftbning, Konstruktioner","m³/h ",50,0]
["Beluftningsanlæg, bundbeluftbning, Mek./EL","m³/h ",25,0]
["Beluftningsanlæg, rislebakke, Konstruktioner","m³/h ",50,0]
["Beluftningsanlæg, rislebakke, Mek./EL","m³/h ",25,0]
["Beluftningsanlæg, kompressorbeluftning","m³/h ",25,0]
["Beluftningsanlæg, ren ilt","m³/h ",25,0]
["Behandlingsanlæg, kalk anlæg","m³/h ",25,0]
["Behandlingsanlæg, luddosering","m³/h ",25,0]
["Filteranlæg, åbne filtre, enkelt filtrering, Konstruktioner","m³/h ",50,0]
["Filteranlæg, åbne filtre, enkelt filtrering, Mek./EL","m³/h ",25,0]
["Filteranlæg, åbne filtre, dobbelt filtrering, Konstruktioner","m³/h ",50,0]
["Filteranlæg, åbne filtre, dobbelt filtrering, Mek./EL","m³/h ",25,0]
["Filteranlæg, trykfiltre, enkelt filtrering","m³/h ",25,0]
["Filteranlæg, trykfiltre, dobbelt filtrering","m³/h ",25,0]
["Rentvandsbeholder  insitu støbt","m³",50,0]
["Rentvandsbeholder  element","m³",50,0]
["Udpumpningsanlæg, rentvandspumper på vandværk","m³/h ",25,0]
["Udpumpningsanlæg, frekvensomformer","kW",25,0]
["Udpumpningsanlæg, Hydrofor","liter",25,0]
["Skyllevand-/slamhåndteringsanlæg - lukkede betonbeholdere","m³",50,0]
["Skyllevand-/slamhåndteringsanl. - åbne med faste sider/bund","m³",50,0]
["Skyllevand-/slamhåndteringsanlæg - jordbassiner","m³",50,0]
["Skyllevandsbehandling, inkl. UV-filter mv., Mek./EL","m³/h.",25,0]
["Skyllevandsbehandling, inkl. UV-filter mv., SRO","m³/h.",10,0]
["Nødstrømsanlæg på vandværk","kW",25,0]
["Elanlæg og SRO-anlæg - vandværk, Elanlæg","m³/h.",25,0]
["Elanlæg og SRO-anlæg - vandværk, SRO","m³/h.",10,0]
["Vandværk 16"]
["Beluftningsanlæg, iltningstrappe, Konstruktioner","m³/h ",50,0]
["Beluftningsanlæg, iltningstrappe, Mek./EL","m³/h ",25,0]
["Beluftningsanlæg, ika-beluftning, Konstruktioner","m³/h ",50,0]
["Beluftningsanlæg, ika-beluftning, Mek./EL","m³/h ",25,0]
["Beluftningsanlæg, bundbeluftbning, Konstruktioner","m³/h ",50,0]
["Beluftningsanlæg, bundbeluftbning, Mek./EL","m³/h ",25,0]
["Beluftningsanlæg, rislebakke, Konstruktioner","m³/h ",50,0]
["Beluftningsanlæg, rislebakke, Mek./EL","m³/h ",25,0]
["Beluftningsanlæg, kompressorbeluftning","m³/h ",25,0]
["Beluftningsanlæg, ren ilt","m³/h ",25,0]
["Behandlingsanlæg, kalk anlæg","m³/h ",25,0]
["Behandlingsanlæg, luddosering","m³/h ",25,0]
["Filteranlæg, åbne filtre, enkelt filtrering, Konstruktioner","m³/h ",50,0]
["Filteranlæg, åbne filtre, enkelt filtrering, Mek./EL","m³/h ",25,0]
["Filteranlæg, åbne filtre, dobbelt filtrering, Konstruktioner","m³/h ",50,0]
["Filteranlæg, åbne filtre, dobbelt filtrering, Mek./EL","m³/h ",25,0]
["Filteranlæg, trykfiltre, enkelt filtrering","m³/h ",25,0]
["Filteranlæg, trykfiltre, dobbelt filtrering","m³/h ",25,0]
["Rentvandsbeholder  insitu støbt","m³",50,0]
["Rentvandsbeholder  element","m³",50,0]
["Udpumpningsanlæg, rentvandspumper på vandværk","m³/h ",25,0]
["Udpumpningsanlæg, frekvensomformer","kW",25,0]
["Udpumpningsanlæg, Hydrofor","liter",25,0]
["Skyllevand-/slamhåndteringsanlæg - lukkede betonbeholdere","m³",50,0]
["Skyllevand-/slamhåndteringsanl. - åbne med faste sider/bund","m³",50,0]
["Skyllevand-/slamhåndteringsanlæg - jordbassiner","m³",50,0]
["Skyllevandsbehandling, inkl. UV-filter mv., Mek./EL","m³/h.",25,0]
["Skyllevandsbehandling, inkl. UV-filter mv., SRO","m³/h.",10,0]
["Nødstrømsanlæg på vandværk","kW",25,0]
["Elanlæg og SRO-anlæg - vandværk, Elanlæg","m³/h.",25,0]
["Elanlæg og SRO-anlæg - vandværk, SRO","m³/h.",10,0]
["Vandværk 17"]
["Beluftningsanlæg, iltningstrappe, Konstruktioner","m³/h ",50,0]
["Beluftningsanlæg, iltningstrappe, Mek./EL","m³/h ",25,0]
["Beluftningsanlæg, ika-beluftning, Konstruktioner","m³/h ",50,0]
["Beluftningsanlæg, ika-beluftning, Mek./EL","m³/h ",25,0]
["Beluftningsanlæg, bundbeluftbning, Konstruktioner","m³/h ",50,0]
["Beluftningsanlæg, bundbeluftbning, Mek./EL","m³/h ",25,0]
["Beluftningsanlæg, rislebakke, Konstruktioner","m³/h ",50,0]
["Beluftningsanlæg, rislebakke, Mek./EL","m³/h ",25,0]
["Beluftningsanlæg, kompressorbeluftning","m³/h ",25,0]
["Beluftningsanlæg, ren ilt","m³/h ",25,0]
["Behandlingsanlæg, kalk anlæg","m³/h ",25,0]
["Behandlingsanlæg, luddosering","m³/h ",25,0]
["Filteranlæg, åbne filtre, enkelt filtrering, Konstruktioner","m³/h ",50,0]
["Filteranlæg, åbne filtre, enkelt filtrering, Mek./EL","m³/h ",25,0]
["Filteranlæg, åbne filtre, dobbelt filtrering, Konstruktioner","m³/h ",50,0]
["Filteranlæg, åbne filtre, dobbelt filtrering, Mek./EL","m³/h ",25,0]
["Filteranlæg, trykfiltre, enkelt filtrering","m³/h ",25,0]
["Filteranlæg, trykfiltre, dobbelt filtrering","m³/h ",25,0]
["Rentvandsbeholder  insitu støbt","m³",50,0]
["Rentvandsbeholder  element","m³",50,0]
["Udpumpningsanlæg, rentvandspumper på vandværk","m³/h ",25,0]
["Udpumpningsanlæg, frekvensomformer","kW",25,0]
["Udpumpningsanlæg, Hydrofor","liter",25,0]
["Skyllevand-/slamhåndteringsanlæg - lukkede betonbeholdere","m³",50,0]
["Skyllevand-/slamhåndteringsanl. - åbne med faste sider/bund","m³",50,0]
["Skyllevand-/slamhåndteringsanlæg - jordbassiner","m³",50,0]
["Skyllevandsbehandling, inkl. UV-filter mv., Mek./EL","m³/h.",25,0]
["Skyllevandsbehandling, inkl. UV-filter mv., SRO","m³/h.",10,0]
["Nødstrømsanlæg på vandværk","kW",25,0]
["Elanlæg og SRO-anlæg - vandværk, Elanlæg","m³/h.",25,0]
["Elanlæg og SRO-anlæg - vandværk, SRO","m³/h.",10,0]
["Vandværk 18"]
["Beluftningsanlæg, iltningstrappe, Konstruktioner","m³/h ",50,0]
["Beluftningsanlæg, iltningstrappe, Mek./EL","m³/h ",25,0]
["Beluftningsanlæg, ika-beluftning, Konstruktioner","m³/h ",50,0]
["Beluftningsanlæg, ika-beluftning, Mek./EL","m³/h ",25,0]
["Beluftningsanlæg, bundbeluftbning, Konstruktioner","m³/h ",50,0]
["Beluftningsanlæg, bundbeluftbning, Mek./EL","m³/h ",25,0]
["Beluftningsanlæg, rislebakke, Konstruktioner","m³/h ",50,0]
["Beluftningsanlæg, rislebakke, Mek./EL","m³/h ",25,0]
["Beluftningsanlæg, kompressorbeluftning","m³/h ",25,0]
["Beluftningsanlæg, ren ilt","m³/h ",25,0]
["Behandlingsanlæg, kalk anlæg","m³/h ",25,0]
["Behandlingsanlæg, luddosering","m³/h ",25,0]
["Filteranlæg, åbne filtre, enkelt filtrering, Konstruktioner","m³/h ",50,0]
["Filteranlæg, åbne filtre, enkelt filtrering, Mek./EL","m³/h ",25,0]
["Filteranlæg, åbne filtre, dobbelt filtrering, Konstruktioner","m³/h ",50,0]
["Filteranlæg, åbne filtre, dobbelt filtrering, Mek./EL","m³/h ",25,0]
["Filteranlæg, trykfiltre, enkelt filtrering","m³/h ",25,0]
["Filteranlæg, trykfiltre, dobbelt filtrering","m³/h ",25,0]
["Rentvandsbeholder  insitu støbt","m³",50,0]
["Rentvandsbeholder  element","m³",50,0]
["Udpumpningsanlæg, rentvandspumper på vandværk","m³/h ",25,0]
["Udpumpningsanlæg, frekvensomformer","kW",25,0]
["Udpumpningsanlæg, Hydrofor","liter",25,0]
["Skyllevand-/slamhåndteringsanlæg - lukkede betonbeholdere","m³",50,0]
["Skyllevand-/slamhåndteringsanl. - åbne med faste sider/bund","m³",50,0]
["Skyllevand-/slamhåndteringsanlæg - jordbassiner","m³",50,0]
["Skyllevandsbehandling, inkl. UV-filter mv., Mek./EL","m³/h.",25,0]
["Skyllevandsbehandling, inkl. UV-filter mv., SRO","m³/h.",10,0]
["Nødstrømsanlæg på vandværk","kW",25,0]
["Elanlæg og SRO-anlæg - vandværk, Elanlæg","m³/h.",25,0]
["Elanlæg og SRO-anlæg - vandværk, SRO","m³/h.",10,0]
["Vandværk 19"]
["Beluftningsanlæg, iltningstrappe, Konstruktioner","m³/h ",50,0]
["Beluftningsanlæg, iltningstrappe, Mek./EL","m³/h ",25,0]
["Beluftningsanlæg, ika-beluftning, Konstruktioner","m³/h ",50,0]
["Beluftningsanlæg, ika-beluftning, Mek./EL","m³/h ",25,0]
["Beluftningsanlæg, bundbeluftbning, Konstruktioner","m³/h ",50,0]
["Beluftningsanlæg, bundbeluftbning, Mek./EL","m³/h ",25,0]
["Beluftningsanlæg, rislebakke, Konstruktioner","m³/h ",50,0]
["Beluftningsanlæg, rislebakke, Mek./EL","m³/h ",25,0]
["Beluftningsanlæg, kompressorbeluftning","m³/h ",25,0]
["Beluftningsanlæg, ren ilt","m³/h ",25,0]
["Behandlingsanlæg, kalk anlæg","m³/h ",25,0]
["Behandlingsanlæg, luddosering","m³/h ",25,0]
["Filteranlæg, åbne filtre, enkelt filtrering, Konstruktioner","m³/h ",50,0]
["Filteranlæg, åbne filtre, enkelt filtrering, Mek./EL","m³/h ",25,0]
["Filteranlæg, åbne filtre, dobbelt filtrering, Konstruktioner","m³/h ",50,0]
["Filteranlæg, åbne filtre, dobbelt filtrering, Mek./EL","m³/h ",25,0]
["Filteranlæg, trykfiltre, enkelt filtrering","m³/h ",25,0]
["Filteranlæg, trykfiltre, dobbelt filtrering","m³/h ",25,0]
["Rentvandsbeholder  insitu støbt","m³",50,0]
["Rentvandsbeholder  element","m³",50,0]
["Udpumpningsanlæg, rentvandspumper på vandværk","m³/h ",25,0]
["Udpumpningsanlæg, frekvensomformer","kW",25,0]
["Udpumpningsanlæg, Hydrofor","liter",25,0]
["Skyllevand-/slamhåndteringsanlæg - lukkede betonbeholdere","m³",50,0]
["Skyllevand-/slamhåndteringsanl. - åbne med faste sider/bund","m³",50,0]
["Skyllevand-/slamhåndteringsanlæg - jordbassiner","m³",50,0]
["Skyllevandsbehandling, inkl. UV-filter mv., Mek./EL","m³/h.",25,0]
["Skyllevandsbehandling, inkl. UV-filter mv., SRO","m³/h.",10,0]
["Nødstrømsanlæg på vandværk","kW",25,0]
["Elanlæg og SRO-anlæg - vandværk, Elanlæg","m³/h.",25,0]
["Elanlæg og SRO-anlæg - vandværk, SRO","m³/h.",10,0]
["Vandværk 20"]
["Beluftningsanlæg, iltningstrappe, Konstruktioner","m³/h ",50,0]
["Beluftningsanlæg, iltningstrappe, Mek./EL","m³/h ",25,0]
["Beluftningsanlæg, ika-beluftning, Konstruktioner","m³/h ",50,0]
["Beluftningsanlæg, ika-beluftning, Mek./EL","m³/h ",25,0]
["Beluftningsanlæg, bundbeluftbning, Konstruktioner","m³/h ",50,0]
["Beluftningsanlæg, bundbeluftbning, Mek./EL","m³/h ",25,0]
["Beluftningsanlæg, rislebakke, Konstruktioner","m³/h ",50,0]
["Beluftningsanlæg, rislebakke, Mek./EL","m³/h ",25,0]
["Beluftningsanlæg, kompressorbeluftning","m³/h ",25,0]
["Beluftningsanlæg, ren ilt","m³/h ",25,0]
["Behandlingsanlæg, kalk anlæg","m³/h ",25,0]
["Behandlingsanlæg, luddosering","m³/h ",25,0]
["Filteranlæg, åbne filtre, enkelt filtrering, Konstruktioner","m³/h ",50,0]
["Filteranlæg, åbne filtre, enkelt filtrering, Mek./EL","m³/h ",25,0]
["Filteranlæg, åbne filtre, dobbelt filtrering, Konstruktioner","m³/h ",50,0]
["Filteranlæg, åbne filtre, dobbelt filtrering, Mek./EL","m³/h ",25,0]
["Filteranlæg, trykfiltre, enkelt filtrering","m³/h ",25,0]
["Filteranlæg, trykfiltre, dobbelt filtrering","m³/h ",25,0]
["Rentvandsbeholder  insitu støbt","m³",50,0]
["Rentvandsbeholder  element","m³",50,0]
["Udpumpningsanlæg, rentvandspumper på vandværk","m³/h ",25,0]
["Udpumpningsanlæg, frekvensomformer","kW",25,0]
["Udpumpningsanlæg, Hydrofor","liter",25,0]
["Skyllevand-/slamhåndteringsanlæg - lukkede betonbeholdere","m³",50,0]
["Skyllevand-/slamhåndteringsanl. - åbne med faste sider/bund","m³",50,0]
["Skyllevand-/slamhåndteringsanlæg - jordbassiner","m³",50,0]
["Skyllevandsbehandling, inkl. UV-filter mv., Mek./EL","m³/h.",25,0]
["Skyllevandsbehandling, inkl. UV-filter mv., SRO","m³/h.",10,0]
["Nødstrømsanlæg på vandværk","kW",25,0]
["Elanlæg og SRO-anlæg - vandværk, Elanlæg","m³/h.",25,0]
["Elanlæg og SRO-anlæg - vandværk, SRO","m³/h.",10,0]
["Vandværk 21"]
["Beluftningsanlæg, iltningstrappe, Konstruktioner","m³/h ",50,0]
["Beluftningsanlæg, iltningstrappe, Mek./EL","m³/h ",25,0]
["Beluftningsanlæg, ika-beluftning, Konstruktioner","m³/h ",50,0]
["Beluftningsanlæg, ika-beluftning, Mek./EL","m³/h ",25,0]
["Beluftningsanlæg, bundbeluftbning, Konstruktioner","m³/h ",50,0]
["Beluftningsanlæg, bundbeluftbning, Mek./EL","m³/h ",25,0]
["Beluftningsanlæg, rislebakke, Konstruktioner","m³/h ",50,0]
["Beluftningsanlæg, rislebakke, Mek./EL","m³/h ",25,0]
["Beluftningsanlæg, kompressorbeluftning","m³/h ",25,0]
["Beluftningsanlæg, ren ilt","m³/h ",25,0]
["Behandlingsanlæg, kalk anlæg","m³/h ",25,0]
["Behandlingsanlæg, luddosering","m³/h ",25,0]
["Filteranlæg, åbne filtre, enkelt filtrering, Konstruktioner","m³/h ",50,0]
["Filteranlæg, åbne filtre, enkelt filtrering, Mek./EL","m³/h ",25,0]
["Filteranlæg, åbne filtre, dobbelt filtrering, Konstruktioner","m³/h ",50,0]
["Filteranlæg, åbne filtre, dobbelt filtrering, Mek./EL","m³/h ",25,0]
["Filteranlæg, trykfiltre, enkelt filtrering","m³/h ",25,0]
["Filteranlæg, trykfiltre, dobbelt filtrering","m³/h ",25,0]
["Rentvandsbeholder  insitu støbt","m³",50,0]
["Rentvandsbeholder  element","m³",50,0]
["Udpumpningsanlæg, rentvandspumper på vandværk","m³/h ",25,0]
["Udpumpningsanlæg, frekvensomformer","kW",25,0]
["Udpumpningsanlæg, Hydrofor","liter",25,0]
["Skyllevand-/slamhåndteringsanlæg - lukkede betonbeholdere","m³",50,0]
["Skyllevand-/slamhåndteringsanl. - åbne med faste sider/bund","m³",50,0]
["Skyllevand-/slamhåndteringsanlæg - jordbassiner","m³",50,0]
["Skyllevandsbehandling, inkl. UV-filter mv., Mek./EL","m³/h.",25,0]
["Skyllevandsbehandling, inkl. UV-filter mv., SRO","m³/h.",10,0]
["Nødstrømsanlæg på vandværk","kW",25,0]
["Elanlæg og SRO-anlæg - vandværk, Elanlæg","m³/h.",25,0]
["Elanlæg og SRO-anlæg - vandværk, SRO","m³/h.",10,0]
["Vandværk 22"]
["Beluftningsanlæg, iltningstrappe, Konstruktioner","m³/h ",50,0]
["Beluftningsanlæg, iltningstrappe, Mek./EL","m³/h ",25,0]
["Beluftningsanlæg, ika-beluftning, Konstruktioner","m³/h ",50,0]
["Beluftningsanlæg, ika-beluftning, Mek./EL","m³/h ",25,0]
["Beluftningsanlæg, bundbeluftbning, Konstruktioner","m³/h ",50,0]
["Beluftningsanlæg, bundbeluftbning, Mek./EL","m³/h ",25,0]
["Beluftningsanlæg, rislebakke, Konstruktioner","m³/h ",50,0]
["Beluftningsanlæg, rislebakke, Mek./EL","m³/h ",25,0]
["Beluftningsanlæg, kompressorbeluftning","m³/h ",25,0]
["Beluftningsanlæg, ren ilt","m³/h ",25,0]
["Behandlingsanlæg, kalk anlæg","m³/h ",25,0]
["Behandlingsanlæg, luddosering","m³/h ",25,0]
["Filteranlæg, åbne filtre, enkelt filtrering, Konstruktioner","m³/h ",50,0]
["Filteranlæg, åbne filtre, enkelt filtrering, Mek./EL","m³/h ",25,0]
["Filteranlæg, åbne filtre, dobbelt filtrering, Konstruktioner","m³/h ",50,0]
["Filteranlæg, åbne filtre, dobbelt filtrering, Mek./EL","m³/h ",25,0]
["Filteranlæg, trykfiltre, enkelt filtrering","m³/h ",25,0]
["Filteranlæg, trykfiltre, dobbelt filtrering","m³/h ",25,0]
["Rentvandsbeholder  insitu støbt","m³",50,0]
["Rentvandsbeholder  element","m³",50,0]
["Udpumpningsanlæg, rentvandspumper på vandværk","m³/h ",25,0]
["Udpumpningsanlæg, frekvensomformer","kW",25,0]
["Udpumpningsanlæg, Hydrofor","liter",25,0]
["Skyllevand-/slamhåndteringsanlæg - lukkede betonbeholdere","m³",50,0]
["Skyllevand-/slamhåndteringsanl. - åbne med faste sider/bund","m³",50,0]
["Skyllevand-/slamhåndteringsanlæg - jordbassiner","m³",50,0]
["Skyllevandsbehandling, inkl. UV-filter mv., Mek./EL","m³/h.",25,0]
["Skyllevandsbehandling, inkl. UV-filter mv., SRO","m³/h.",10,0]
["Nødstrømsanlæg på vandværk","kW",25,0]
["Elanlæg og SRO-anlæg - vandværk, Elanlæg","m³/h.",25,0]
["Elanlæg og SRO-anlæg - vandværk, SRO","m³/h.",10,0]
["Vandværk 24"]
["Beluftningsanlæg, iltningstrappe, Konstruktioner","m³/h ",50,0]
["Beluftningsanlæg, iltningstrappe, Mek./EL","m³/h ",25,0]
["Beluftningsanlæg, ika-beluftning, Konstruktioner","m³/h ",50,0]
["Beluftningsanlæg, ika-beluftning, Mek./EL","m³/h ",25,0]
["Beluftningsanlæg, bundbeluftbning, Konstruktioner","m³/h ",50,0]
["Beluftningsanlæg, bundbeluftbning, Mek./EL","m³/h ",25,0]
["Beluftningsanlæg, rislebakke, Konstruktioner","m³/h ",50,0]
["Beluftningsanlæg, rislebakke, Mek./EL","m³/h ",25,0]
["Beluftningsanlæg, kompressorbeluftning","m³/h ",25,0]
["Beluftningsanlæg, ren ilt","m³/h ",25,0]
["Behandlingsanlæg, kalk anlæg","m³/h ",25,0]
["Behandlingsanlæg, luddosering","m³/h ",25,0]
["Filteranlæg, åbne filtre, enkelt filtrering, Konstruktioner","m³/h ",50,0]
["Filteranlæg, åbne filtre, enkelt filtrering, Mek./EL","m³/h ",25,0]
["Filteranlæg, åbne filtre, dobbelt filtrering, Konstruktioner","m³/h ",50,0]
["Filteranlæg, åbne filtre, dobbelt filtrering, Mek./EL","m³/h ",25,0]
["Filteranlæg, trykfiltre, enkelt filtrering","m³/h ",25,0]
["Filteranlæg, trykfiltre, dobbelt filtrering","m³/h ",25,0]
["Rentvandsbeholder  insitu støbt","m³",50,0]
["Rentvandsbeholder  element","m³",50,0]
["Udpumpningsanlæg, rentvandspumper på vandværk","m³/h ",25,0]
["Udpumpningsanlæg, frekvensomformer","kW",25,0]
["Udpumpningsanlæg, Hydrofor","liter",25,0]
["Skyllevand-/slamhåndteringsanlæg - lukkede betonbeholdere","m³",50,0]
["Skyllevand-/slamhåndteringsanl. - åbne med faste sider/bund","m³",50,0]
["Skyllevand-/slamhåndteringsanlæg - jordbassiner","m³",50,0]
["Skyllevandsbehandling, inkl. UV-filter mv., Mek./EL","m³/h.",25,0]
["Skyllevandsbehandling, inkl. UV-filter mv., SRO","m³/h.",10,0]
["Nødstrømsanlæg på vandværk","kW",25,0]
["Elanlæg og SRO-anlæg - vandværk, Elanlæg","m³/h.",25,0]
["Elanlæg og SRO-anlæg - vandværk, SRO","m³/h.",10,0]
["Vandværk 25"]
["Beluftningsanlæg, iltningstrappe, Konstruktioner","m³/h ",50,0]
["Beluftningsanlæg, iltningstrappe, Mek./EL","m³/h ",25,0]
["Beluftningsanlæg, ika-beluftning, Konstruktioner","m³/h ",50,0]
["Beluftningsanlæg, ika-beluftning, Mek./EL","m³/h ",25,0]
["Beluftningsanlæg, bundbeluftbning, Konstruktioner","m³/h ",50,0]
["Beluftningsanlæg, bundbeluftbning, Mek./EL","m³/h ",25,0]
["Beluftningsanlæg, rislebakke, Konstruktioner","m³/h ",50,0]
["Beluftningsanlæg, rislebakke, Mek./EL","m³/h ",25,0]
["Beluftningsanlæg, kompressorbeluftning","m³/h ",25,0]
["Beluftningsanlæg, ren ilt","m³/h ",25,0]
["Behandlingsanlæg, kalk anlæg","m³/h ",25,0]
["Behandlingsanlæg, luddosering","m³/h ",25,0]
["Filteranlæg, åbne filtre, enkelt filtrering, Konstruktioner","m³/h ",50,0]
["Filteranlæg, åbne filtre, enkelt filtrering, Mek./EL","m³/h ",25,0]
["Filteranlæg, åbne filtre, dobbelt filtrering, Konstruktioner","m³/h ",50,0]
["Filteranlæg, åbne filtre, dobbelt filtrering, Mek./EL","m³/h ",25,0]
["Filteranlæg, trykfiltre, enkelt filtrering","m³/h ",25,0]
["Filteranlæg, trykfiltre, dobbelt filtrering","m³/h ",25,0]
["Rentvandsbeholder  insitu støbt","m³",50,0]
["Rentvandsbeholder  element","m³",50,0]
["Udpumpningsanlæg, rentvandspumper på vandværk","m³/h ",25,0]
["Udpumpningsanlæg, frekvensomformer","kW",25,0]
["Udpumpningsanlæg, Hydrofor","liter",25,0]
["Skyllevand-/slamhåndteringsanlæg - lukkede betonbeholdere","m³",50,0]
["Skyllevand-/slamhåndteringsanl. - åbne med faste sider/bund","m³",50,0]
["Skyllevand-/slamhåndteringsanlæg - jordbassiner","m³",50,0]
["Skyllevandsbehandling, inkl. UV-filter mv., Mek./EL","m³/h.",25,0]
["Skyllevandsbehandling, inkl. UV-filter mv., SRO","m³/h.",10,0]
["Nødstrømsanlæg på vandværk","kW",25,0]
["Elanlæg og SRO-anlæg - vandværk, Elanlæg","m³/h.",25,0]
["Elanlæg og SRO-anlæg - vandværk, SRO","m³/h.",10,0]
["Vandværk 26"]
["Beluftningsanlæg, iltningstrappe, Konstruktioner","m³/h ",50,0]
["Beluftningsanlæg, iltningstrappe, Mek./EL","m³/h ",25,0]
["Beluftningsanlæg, ika-beluftning, Konstruktioner","m³/h ",50,0]
["Beluftningsanlæg, ika-beluftning, Mek./EL","m³/h ",25,0]
["Beluftningsanlæg, bundbeluftbning, Konstruktioner","m³/h ",50,0]
["Beluftningsanlæg, bundbeluftbning, Mek./EL","m³/h ",25,0]
["Beluftningsanlæg, rislebakke, Konstruktioner","m³/h ",50,0]
["Beluftningsanlæg, rislebakke, Mek./EL","m³/h ",25,0]
["Beluftningsanlæg, kompressorbeluftning","m³/h ",25,0]
["Beluftningsanlæg, ren ilt","m³/h ",25,0]
["Behandlingsanlæg, kalk anlæg","m³/h ",25,0]
["Behandlingsanlæg, luddosering","m³/h ",25,0]
["Filteranlæg, åbne filtre, enkelt filtrering, Konstruktioner","m³/h ",50,0]
["Filteranlæg, åbne filtre, enkelt filtrering, Mek./EL","m³/h ",25,0]
["Filteranlæg, åbne filtre, dobbelt filtrering, Konstruktioner","m³/h ",50,0]
["Filteranlæg, åbne filtre, dobbelt filtrering, Mek./EL","m³/h ",25,0]
["Filteranlæg, trykfiltre, enkelt filtrering","m³/h ",25,0]
["Filteranlæg, trykfiltre, dobbelt filtrering","m³/h ",25,0]
["Rentvandsbeholder  insitu støbt","m³",50,0]
["Rentvandsbeholder  element","m³",50,0]
["Udpumpningsanlæg, rentvandspumper på vandværk","m³/h ",25,0]
["Udpumpningsanlæg, frekvensomformer","kW",25,0]
["Udpumpningsanlæg, Hydrofor","liter",25,0]
["Skyllevand-/slamhåndteringsanlæg - lukkede betonbeholdere","m³",50,0]
["Skyllevand-/slamhåndteringsanl. - åbne med faste sider/bund","m³",50,0]
["Skyllevand-/slamhåndteringsanlæg - jordbassiner","m³",50,0]
["Skyllevandsbehandling, inkl. UV-filter mv., Mek./EL","m³/h.",25,0]
["Skyllevandsbehandling, inkl. UV-filter mv., SRO","m³/h.",10,0]
["Nødstrømsanlæg på vandværk","kW",25,0]
["Elanlæg og SRO-anlæg - vandværk, Elanlæg","m³/h.",25,0]
["Elanlæg og SRO-anlæg - vandværk, SRO","m³/h.",10,0]
["Vandværk 27"]
["Beluftningsanlæg, iltningstrappe, Konstruktioner","m³/h ",50,0]
["Beluftningsanlæg, iltningstrappe, Mek./EL","m³/h ",25,0]
["Beluftningsanlæg, ika-beluftning, Konstruktioner","m³/h ",50,0]
["Beluftningsanlæg, ika-beluftning, Mek./EL","m³/h ",25,0]
["Beluftningsanlæg, bundbeluftbning, Konstruktioner","m³/h ",50,0]
["Beluftningsanlæg, bundbeluftbning, Mek./EL","m³/h ",25,0]
["Beluftningsanlæg, rislebakke, Konstruktioner","m³/h ",50,0]
["Beluftningsanlæg, rislebakke, Mek./EL","m³/h ",25,0]
["Beluftningsanlæg, kompressorbeluftning","m³/h ",25,0]
["Beluftningsanlæg, ren ilt","m³/h ",25,0]
["Behandlingsanlæg, kalk anlæg","m³/h ",25,0]
["Behandlingsanlæg, luddosering","m³/h ",25,0]
["Filteranlæg, åbne filtre, enkelt filtrering, Konstruktioner","m³/h ",50,0]
["Filteranlæg, åbne filtre, enkelt filtrering, Mek./EL","m³/h ",25,0]
["Filteranlæg, åbne filtre, dobbelt filtrering, Konstruktioner","m³/h ",50,0]
["Filteranlæg, åbne filtre, dobbelt filtrering, Mek./EL","m³/h ",25,0]
["Filteranlæg, trykfiltre, enkelt filtrering","m³/h ",25,0]
["Filteranlæg, trykfiltre, dobbelt filtrering","m³/h ",25,0]
["Rentvandsbeholder  insitu støbt","m³",50,0]
["Rentvandsbeholder  element","m³",50,0]
["Udpumpningsanlæg, rentvandspumper på vandværk","m³/h ",25,0]
["Udpumpningsanlæg, frekvensomformer","kW",25,0]
["Udpumpningsanlæg, Hydrofor","liter",25,0]
["Skyllevand-/slamhåndteringsanlæg - lukkede betonbeholdere","m³",50,0]
["Skyllevand-/slamhåndteringsanl. - åbne med faste sider/bund","m³",50,0]
["Skyllevand-/slamhåndteringsanlæg - jordbassiner","m³",50,0]
["Skyllevandsbehandling, inkl. UV-filter mv., Mek./EL","m³/h.",25,0]
["Skyllevandsbehandling, inkl. UV-filter mv., SRO","m³/h.",10,0]
["Nødstrømsanlæg på vandværk","kW",25,0]
["Elanlæg og SRO-anlæg - vandværk, Elanlæg","m³/h.",25,0]
["Elanlæg og SRO-anlæg - vandværk, SRO","m³/h.",10,0]
["Vandværk 28"]
["Beluftningsanlæg, iltningstrappe, Konstruktioner","m³/h ",50,0]
["Beluftningsanlæg, iltningstrappe, Mek./EL","m³/h ",25,0]
["Beluftningsanlæg, ika-beluftning, Konstruktioner","m³/h ",50,0]
["Beluftningsanlæg, ika-beluftning, Mek./EL","m³/h ",25,0]
["Beluftningsanlæg, bundbeluftbning, Konstruktioner","m³/h ",50,0]
["Beluftningsanlæg, bundbeluftbning, Mek./EL","m³/h ",25,0]
["Beluftningsanlæg, rislebakke, Konstruktioner","m³/h ",50,0]
["Beluftningsanlæg, rislebakke, Mek./EL","m³/h ",25,0]
["Beluftningsanlæg, kompressorbeluftning","m³/h ",25,0]
["Beluftningsanlæg, ren ilt","m³/h ",25,0]
["Behandlingsanlæg, kalk anlæg","m³/h ",25,0]
["Behandlingsanlæg, luddosering","m³/h ",25,0]
["Filteranlæg, åbne filtre, enkelt filtrering, Konstruktioner","m³/h ",50,0]
["Filteranlæg, åbne filtre, enkelt filtrering, Mek./EL","m³/h ",25,0]
["Filteranlæg, åbne filtre, dobbelt filtrering, Konstruktioner","m³/h ",50,0]
["Filteranlæg, åbne filtre, dobbelt filtrering, Mek./EL","m³/h ",25,0]
["Filteranlæg, trykfiltre, enkelt filtrering","m³/h ",25,0]
["Filteranlæg, trykfiltre, dobbelt filtrering","m³/h ",25,0]
["Rentvandsbeholder  insitu støbt","m³",50,0]
["Rentvandsbeholder  element","m³",50,0]
["Udpumpningsanlæg, rentvandspumper på vandværk","m³/h ",25,0]
["Udpumpningsanlæg, frekvensomformer","kW",25,0]
["Udpumpningsanlæg, Hydrofor","liter",25,0]
["Skyllevand-/slamhåndteringsanlæg - lukkede betonbeholdere","m³",50,0]
["Skyllevand-/slamhåndteringsanl. - åbne med faste sider/bund","m³",50,0]
["Skyllevand-/slamhåndteringsanlæg - jordbassiner","m³",50,0]
["Skyllevandsbehandling, inkl. UV-filter mv., Mek./EL","m³/h.",25,0]
["Skyllevandsbehandling, inkl. UV-filter mv., SRO","m³/h.",10,0]
["Nødstrømsanlæg på vandværk","kW",25,0]
["Elanlæg og SRO-anlæg - vandværk, Elanlæg","m³/h.",25,0]
["Elanlæg og SRO-anlæg - vandværk, SRO","m³/h.",10,0]
["Vandværk 29"]
["Beluftningsanlæg, iltningstrappe, Konstruktioner","m³/h ",50,0]
["Beluftningsanlæg, iltningstrappe, Mek./EL","m³/h ",25,0]
["Beluftningsanlæg, ika-beluftning, Konstruktioner","m³/h ",50,0]
["Beluftningsanlæg, ika-beluftning, Mek./EL","m³/h ",25,0]
["Beluftningsanlæg, bundbeluftbning, Konstruktioner","m³/h ",50,0]
["Beluftningsanlæg, bundbeluftbning, Mek./EL","m³/h ",25,0]
["Beluftningsanlæg, rislebakke, Konstruktioner","m³/h ",50,0]
["Beluftningsanlæg, rislebakke, Mek./EL","m³/h ",25,0]
["Beluftningsanlæg, kompressorbeluftning","m³/h ",25,0]
["Beluftningsanlæg, ren ilt","m³/h ",25,0]
["Behandlingsanlæg, kalk anlæg","m³/h ",25,0]
["Behandlingsanlæg, luddosering","m³/h ",25,0]
["Filteranlæg, åbne filtre, enkelt filtrering, Konstruktioner","m³/h ",50,0]
["Filteranlæg, åbne filtre, enkelt filtrering, Mek./EL","m³/h ",25,0]
["Filteranlæg, åbne filtre, dobbelt filtrering, Konstruktioner","m³/h ",50,0]
["Filteranlæg, åbne filtre, dobbelt filtrering, Mek./EL","m³/h ",25,0]
["Filteranlæg, trykfiltre, enkelt filtrering","m³/h ",25,0]
["Filteranlæg, trykfiltre, dobbelt filtrering","m³/h ",25,0]
["Rentvandsbeholder  insitu støbt","m³",50,0]
["Rentvandsbeholder  element","m³",50,0]
["Udpumpningsanlæg, rentvandspumper på vandværk","m³/h ",25,0]
["Udpumpningsanlæg, frekvensomformer","kW",25,0]
["Udpumpningsanlæg, Hydrofor","liter",25,0]
["Skyllevand-/slamhåndteringsanlæg - lukkede betonbeholdere","m³",50,0]
["Skyllevand-/slamhåndteringsanl. - åbne med faste sider/bund","m³",50,0]
["Skyllevand-/slamhåndteringsanlæg - jordbassiner","m³",50,0]
["Skyllevandsbehandling, inkl. UV-filter mv., Mek./EL","m³/h.",25,0]
["Skyllevandsbehandling, inkl. UV-filter mv., SRO","m³/h.",10,0]
["Nødstrømsanlæg på vandværk","kW",25,0]
["Elanlæg og SRO-anlæg - vandværk, Elanlæg","m³/h.",25,0]
["Elanlæg og SRO-anlæg - vandværk, SRO","m³/h.",10,0]
["Vandværk 30"]
["Beluftningsanlæg, iltningstrappe, Konstruktioner","m³/h ",50,0]
["Beluftningsanlæg, iltningstrappe, Mek./EL","m³/h ",25,0]
["Beluftningsanlæg, ika-beluftning, Konstruktioner","m³/h ",50,0]
["Beluftningsanlæg, ika-beluftning, Mek./EL","m³/h ",25,0]
["Beluftningsanlæg, bundbeluftbning, Konstruktioner","m³/h ",50,0]
["Beluftningsanlæg, bundbeluftbning, Mek./EL","m³/h ",25,0]
["Beluftningsanlæg, rislebakke, Konstruktioner","m³/h ",50,0]
["Beluftningsanlæg, rislebakke, Mek./EL","m³/h ",25,0]
["Beluftningsanlæg, kompressorbeluftning","m³/h ",25,0]
["Beluftningsanlæg, ren ilt","m³/h ",25,0]
["Behandlingsanlæg, kalk anlæg","m³/h ",25,0]
["Behandlingsanlæg, luddosering","m³/h ",25,0]
["Filteranlæg, åbne filtre, enkelt filtrering, Konstruktioner","m³/h ",50,0]
["Filteranlæg, åbne filtre, enkelt filtrering, Mek./EL","m³/h ",25,0]
["Filteranlæg, åbne filtre, dobbelt filtrering, Konstruktioner","m³/h ",50,0]
["Filteranlæg, åbne filtre, dobbelt filtrering, Mek./EL","m³/h ",25,0]
["Filteranlæg, trykfiltre, enkelt filtrering","m³/h ",25,0]
["Filteranlæg, trykfiltre, dobbelt filtrering","m³/h ",25,0]
["Rentvandsbeholder  insitu støbt","m³",50,0]
["Rentvandsbeholder  element","m³",50,0]
["Udpumpningsanlæg, rentvandspumper på vandværk","m³/h ",25,0]
["Udpumpningsanlæg, frekvensomformer","kW",25,0]
["Udpumpningsanlæg, Hydrofor","liter",25,0]
["Skyllevand-/slamhåndteringsanlæg - lukkede betonbeholdere","m³",50,0]
["Skyllevand-/slamhåndteringsanl. - åbne med faste sider/bund","m³",50,0]
["Skyllevand-/slamhåndteringsanlæg - jordbassiner","m³",50,0]
["Skyllevandsbehandling, inkl. UV-filter mv., Mek./EL","m³/h.",25,0]
["Skyllevandsbehandling, inkl. UV-filter mv., SRO","m³/h.",10,0]
["Nødstrømsanlæg på vandværk","kW",25,0]
["Elanlæg og SRO-anlæg - vandværk, Elanlæg","m³/h.",25,0]
["Elanlæg og SRO-anlæg - vandværk, SRO","m³/h.",10,0]
["Bygninger"]
["Etageareal vandbehandlingsbygning","m²",75,290,290]
["Etageareal kontor og mandskabsfaciliteter","m²",75,340,340]
["Værksted","m²",75,568,568]
["Lager","m²",75,611,611]
["Garage og rørlager","m²",75,324,324]
["Bygning for trykforøgere","m²",75,20,20]
["Laboratorium (bygning, inkl. inventar+udstyr), Konstruktioner","m²",75,0,0]
["Laboratorium (bygning, inkl. inventar+udstyr), Mek./EL","m²",10,40,40]
["Andre"]
["Sikring (terror, hærværk), Mek./EL","stk.",25,0,0]
["Sikring (terror, hærværk), SRO","stk.",10,35,35]
["Sikring, mindre avanceret (hegn, porte), Mek./EL","stk.",25,0,0]
["Sikring, mindre avanceret (hegn, porte), SRO","stk.",10,0,0]
["Sikring, avanceret (hegn, porte og overvågningssystemer), Mek./EL","stk.",25,0,0]
["Sikring, avanceret (hegn, porte og overvågningssystemer), SRO","stk.",10,4,4]

{"sheet":"Distributionsanlæg","index":1,"n_rows":313,"n_cols":6,"rows_kept":313,"cut":false,"hidden":false,"merged":[[0,5,1,5],[0,0,1,0],[0,1,1,1],[0,2,1,2],[0,3,1,3],[0,4,1,4]]}
["Distributionsanlæg","Enhed","Standard-levetid","Samlet mængde per 31/12-2014","Samlet mængde per 31/12-2015","Bemærk-ninger"]
[]
["Ledningsnet - Land"]
["Ledningsnet ≤ Ø50 mm","meter",75,{"$f":"1602+1043","v":2645},{"$f":"+D4","v":2645}]
["Ø 50mm < Ledningsnet ≤ Ø110 mm","meter",75,{"$f":"4345+422-5","v":4762},{"$f":"4762+694","v":5456}]
["Ø110 mm < Ledningsnet ≤ Ø 250 mm","meter",75,{"$f":"1900-175","v":1725},{"$f":"+D6","v":1725}]
["Ø 250 mm < Ledningsnet ≤ Ø 500mm","meter",75,{"$f":"356-154","v":202},{"$f":"+D7","v":202}]
["Ledningsnet > Ø 500 mm","meter",75,0]
["Støbejernsledninger ≤ Ø50 mm","meter",100,0]
["Støbejernsledninger Ø 50mm < Ledningsnet ≤ Ø110 mm","meter",100,0]
["Støbejernsledninger Ø110 mm < Ledningsnet ≤ Ø 250 mm","meter",100,0]
["Støbejernsledninger Ø 250 mm < Ledningsnet ≤ Ø 500mm","meter",100,0]
["Støbejernsledninger Ledningsnet > Ø 500 mm","meter",100,0]
["Eternitledninger ≤ Ø50 mm","meter",75,0]
["Eternitledninger Ø 50mm < Ledningsnet ≤ Ø110 mm","meter",75,0]
["Eternitledninger Ø110 mm < Ledningsnet ≤ Ø 250 mm","meter",75,0]
["Eternitledninger Ø 250 mm < Ledningsnet ≤ Ø 500mm","meter",75,0]
["Eternitledninger Ledningsnet > Ø 500 mm","meter",75,0]
["Skelbrønd, Konstruktioner","stk.",50,{"$f":"53+4-2-3","v":52},{"$f":"+D19","v":52}]
["Skelbrønd, Mek./EL","stk.",15,0]
["Inspektionsbrønd, Konstruktioner","stk.",50,0]
["Inspektionsbrønd, Mek./EL","stk.",15,0]
["Stik på ledningsnet, Konstruktioner","stk.",75,138,54]
["Stik på ledningsnet, Mek./EL","stk.",75,0]
["Ledningsnet - By"]
["Ledningsnet ≤ Ø50 mm","meter",75,{"$f":"18891+574","v":19465},{"$f":"+D26+21+70+15+83+67+53-31+30+96-198+13+45+39-38+117+146+68","v":20061}]
["Ø 50mm < Ledningsnet ≤ Ø110 mm","meter",75,{"$f":"86290+5686-3","v":91973},{"$f":"+D27+259+102+189+332-108-272-51+222+60-370-159+65+190-119+82-145+1034+261-265+93+393-108+19+397+235+809+186","v":95304}]
["Ø110 mm < Ledningsnet ≤ Ø 250 mm","meter",75,{"$f":"47320+3803","v":51123},{"$f":"+D28+625+142-211+46","v":51725}]
["Ø 250 mm < Ledningsnet ≤ Ø 500mm","meter",75,{"$f":"11522+610-379","v":11753},{"$f":"+D29","v":11753}]
["Ledningsnet > Ø 500 mm","meter",75,0,0]
["Støbejernsledninger ≤ Ø50 mm","meter",100,{"$f":"7965-109-733","v":7123},{"$f":"+D31-155-23-15-136","v":6794}]
["Støbejernsledninger Ø 50mm < Ledningsnet ≤ Ø110 mm","meter",100,{"$f":"21919-969-3088","v":17862},{"$f":"+D32-86-13-1-272-21-958","v":16511}]
["Støbejernsledninger Ø110 mm < Ledningsnet ≤ Ø 250 mm","meter",100,{"$f":"6589-1071-2-815","v":4701},{"$f":"+D33-292-24-315","v":4070}]
["Støbejernsledninger Ø 250 mm < Ledningsnet ≤ Ø 500mm","meter",100,0]
["Støbejernsledninger Ledningsnet > Ø 500 mm","meter",100,0]
["Eternitledninger ≤ Ø50 mm","meter",75,0]
["Eternitledninger Ø 50mm < Ledningsnet ≤ Ø110 mm","meter",75,106,{"$f":"+D37","v":106}]
["Eternitledninger Ø110 mm < Ledningsnet ≤ Ø 250 mm","meter",75,0]
["Eternitledninger Ø 250 mm < Ledningsnet ≤ Ø 500mm","meter",75,0]
["Eternitledninger Ledningsnet > Ø 500 mm","meter",75,0]
["Skelbrønd, Konstruktioner","stk.",50,{"$f":"8609+1024-7+30-874","v":8782},{"$f":"+D41","v":8782}]
["Skelbrønd, Mek./EL","stk.",15,0]
["Inspektionsbrønd, Konstruktioner","stk.",50,0]
["Inspektionsbrønd, Mek./EL","stk.",15,0]
["Stik på ledningsnet, Konstruktioner","stk.",75,6287,7761]
["Stik på ledningsnet, Mek./EL","stk.",75,0]
["Ledningsnet - City"]
["Ledningsnet ≤ Ø50 mm","meter",75,{"$f":"2456+296","v":2752},{"$f":"+D48","v":2752}]
["Ø 50mm < Ledningsnet ≤ Ø110 mm","meter",75,{"$f":"11917+1130-332","v":12715},{"$f":"+D49","v":12715}]
["Ø110 mm < Ledningsnet ≤ Ø 250 mm","meter",75,{"$f":"10673+728-1433-168","v":9800},{"$f":"+D50","v":9800}]
["Ø 250 mm < Ledningsnet ≤ Ø 500mm","meter",75,2330,2330]
["Ledningsnet > Ø 500 mm","meter",75,0,0]
["Støbejernsledninger ≤ Ø50 mm","meter",100,0,0]
["Støbejernsledninger Ø 50mm < Ledningsnet ≤ Ø110 mm","meter",100,{"$f":"165-165","v":0},0]
["Støbejernsledninger Ø110 mm < Ledningsnet ≤ Ø 250 mm","meter",100,0,0]
["Støbejernsledninger Ø 250 mm < Ledningsnet ≤ Ø 500mm","meter",100,0,0]
["Støbejernsledninger Ledningsnet > Ø 500 mm","meter",100,0,0]
["Eternitledninger ≤ Ø50 mm","meter",75,0,0]
["Eternitledninger Ø 50mm < Ledningsnet ≤ Ø110 mm","meter",75,0,0]
["Eternitledninger Ø110 mm < Ledningsnet ≤ Ø 250 mm","meter",75,0,0]
["Eternitledninger Ø 250 mm < Ledningsnet ≤ Ø 500mm","meter",75,0,0]
["Eternitledninger Ledningsnet > Ø 500 mm","meter",75,0,0]
["Skelbrønd, Konstruktioner","stk.",50,{"$f":"1018+250-1+7-136","v":1138},1138]
["Skelbrønd, Mek./EL","stk.",15,0,0]
["Inspektionsbrønd, Konstruktioner","stk.",50,0,0]
["Inspektionsbrønd, Mek./EL","stk.",15,0,0]
["Stik på ledningsnet, Konstruktioner","stk.",75,3170,2203]
["Stik på ledningsnet, Mek./EL","stk.",75,0]
["Ledningsnet - Indre city"]
["Ledningsnet ≤ Ø50 mm","meter",75,0]
["Ø 50mm < Ledningsnet ≤ Ø110 mm","meter",75,0]
["Ø110 mm < Ledningsnet ≤ Ø 250 mm","meter",75,0]
["Ø 250 mm < Ledningsnet ≤ Ø 500mm","meter",75,0]
["Ledningsnet > Ø 500 mm","meter",75,0]
["Støbejernsledninger ≤ Ø50 mm","meter",100,0]
["Støbejernsledninger Ø 50mm < Ledningsnet ≤ Ø110 mm","meter",100,0]
["Støbejernsledninger Ø110 mm < Ledningsnet ≤ Ø 250 mm","meter",100,0]
["Støbejernsledninger Ø 250 mm < Ledningsnet ≤ Ø 500mm","meter",100,0]
["Støbejernsledninger Ledningsnet > Ø 500 mm","meter",100,0]
["Eternitledninger ≤ Ø50 mm","meter",75,0]
["Eternitledninger Ø 50mm < Ledningsnet ≤ Ø110 mm","meter",75,0]
["Eternitledninger Ø110 mm < Ledningsnet ≤ Ø 250 mm","meter",75,0]
["Eternitledninger Ø 250 mm < Ledningsnet ≤ Ø 500mm","meter",75,0]
["Eternitledninger Ledningsnet > Ø 500 mm","meter",75,0]
["Skelbrønd, Konstruktioner","stk.",50,0]
["Skelbrønd, Mek./EL","stk.",15,0]
["Inspektionsbrønd, Konstruktioner","stk.",50,0]
["Inspektionsbrønd, Mek./EL","stk.",15,0]
["Stik på ledningsnet, Konstruktioner","stk.",75,0]
["Stik på ledningsnet, Mek./EL","stk.",75,0]
["Ventiler"]
["Ventiler på ledningsnet ≤ Ø50 mm","stk.",75,{"$f":"218+7+1-14-4","v":208},{"$f":"+D92-1-4+1","v":204}]
["Ventiler på Ø 50mm < Ledningsnet ≤ Ø110 mm","stk.",75,{"$f":"823+14+75+8-3-81-12","v":824},{"$f":"+D93+1+6-5+1-1+2-4+1-2+5-3+1-2+1+1","v":826}]
["Ventiler på Ø110 mm < Ledningsnet ≤ Ø 250 mm","stk.",75,{"$f":"500+8+21+4-18-8","v":507},{"$f":"+D94+2-2+1","v":508}]
["Ventiler på Ø 250 mm < Ledningsnet ≤ Ø 500mm","stk.",75,{"$f":"129+2-2-5","v":124},{"$f":"+D95","v":124}]
["Ventiler på ledningsnet > Ø 500 mm","stk.",75,0]
["Pumpestationer, bygværker og bassiner 1"]
["Pumpestation (inkl. evt. hydrofor)/trykforøger, Konstruktioner","m³/h ",50,150,150]
["Pumpestation (inkl. evt. hydrofor)/trykforøger, Mek./EL","m³/h ",25,150,150]
["Pumpestation (inkl. evt. hydrofor)/trykforøger, SRO","m³/h ",10,150,150]
["Beholderanlæg - højdebeholder","m³",50,0,0]
["Beholderanlæg - vandtårn","m³",50,0,0]
["Pumpestationer, bygværker og bassiner 2"]
["Pumpestation (inkl. evt. hydrofor)/trykforøger, Konstruktioner","m³/h ",50,15,15]
["Pumpestation (inkl. evt. hydrofor)/trykforøger, Mek./EL","m³/h ",25,15,15]
["Pumpestation (inkl. evt. hydrofor)/trykforøger, SRO","m³/h ",10,15,15]
["Beholderanlæg - højdebeholder","m³",50,0,0]
["Beholderanlæg - vandtårn","m³",50,0,0]
["Pumpestationer, bygværker og bassiner 3"]
["Pumpestation (inkl. evt. hydrofor)/trykforøger, Konstruktioner","m³/h ",50,400,400]
["Pumpestation (inkl. evt. hydrofor)/trykforøger, Mek./EL","m³/h ",25,400,400]
["Pumpestation (inkl. evt. hydrofor)/trykforøger, SRO","m³/h ",10,400,400]
["Beholderanlæg - højdebeholder","m³",50,0]
["Beholderanlæg - vandtårn","m³",50,0]
["Pumpestationer, bygværker og bassiner 4"]
["Pumpestation (inkl. evt. hydrofor)/trykforøger, Konstruktioner","m³/h ",50,0,0]
["Pumpestation (inkl. evt. hydrofor)/trykforøger, Mek./EL","m³/h ",25,250,250]
["Pumpestation (inkl. evt. hydrofor)/trykforøger, SRO","m³/h ",10,250,250]
["Beholderanlæg - højdebeholder","m³",50,0,0]
["Beholderanlæg - vandtårn","m³",50,0,0]
["Pumpestationer, bygværker og bassiner 5"]
["Pumpestation (inkl. evt. hydrofor)/trykforøger, Konstruktioner","m³/h ",50,0]
["Pumpestation (inkl. evt. hydrofor)/trykforøger, Mek./EL","m³/h ",25,0]
["Pumpestation (inkl. evt. hydrofor)/trykforøger, SRO","m³/h ",10,0]
["Beholderanlæg - højdebeholder","m³",50,0]
["Beholderanlæg - vandtårn","m³",50,0]
["Pumpestationer, bygværker og bassiner 6"]
["Pumpestation (inkl. evt. hydrofor)/trykforøger, Konstruktioner","m³/h ",50,0]
["Pumpestation (inkl. evt. hydrofor)/trykforøger, Mek./EL","m³/h ",25,0]
["Pumpestation (inkl. evt. hydrofor)/trykforøger, SRO","m³/h ",10,0]
["Beholderanlæg - højdebeholder","m³",50,0]
["Beholderanlæg - vandtårn","m³",50,0]
["Pumpestationer, bygværker og bassiner 7"]
["Pumpestation (inkl. evt. hydrofor)/trykforøger, Konstruktioner","m³/h ",50,0]
["Pumpestation (inkl. evt. hydrofor)/trykforøger, Mek./EL","m³/h ",25,0]
["Pumpestation (inkl. evt. hydrofor)/trykforøger, SRO","m³/h ",10,0]
["Beholderanlæg - højdebeholder","m³",50,0]
["Beholderanlæg - vandtårn","m³",50,0]
["Pumpestationer, bygværker og bassiner 8"]
["Pumpestation (inkl. evt. hydrofor)/trykforøger, Konstruktioner","m³/h ",50,0]
["Pumpestation (inkl. evt. hydrofor)/trykforøger, Mek./EL","m³/h ",25,0]
["Pumpestation (inkl. evt. hydrofor)/trykforøger, SRO","m³/h ",10,0]
["Beholderanlæg - højdebeholder","m³",50,0]
["Beholderanlæg - vandtårn","m³",50,0]
["Pumpestationer, bygværker og bassiner 9"]
["Pumpestation (inkl. evt. hydrofor)/trykforøger, Konstruktioner","m³/h ",50,0]
["Pumpestation (inkl. evt. hydrofor)/trykforøger, Mek./EL","m³/h ",25,0]
["Pumpestation (inkl. evt. hydrofor)/trykforøger, SRO","m³/h ",10,0]
["Beholderanlæg - højdebeholder","m³",50,0]
["Beholderanlæg - vandtårn","m³",50,0]
["Pumpestationer, bygværker og bassiner 10"]
["Pumpestation (inkl. evt. hydrofor)/trykforøger, Konstruktioner","m³/h ",50,0]
["Pumpestation (inkl. evt. hydrofor)/trykforøger, Mek./EL","m³/h ",25,0]
["Pumpestation (inkl. evt. hydrofor)/trykforøger, SRO","m³/h ",10,0]
["Beholderanlæg - højdebeholder","m³",50,0]
["Beholderanlæg - vandtårn","m³",50,0]
["Pumpestationer, bygværker og bassiner 11"]
["Pumpestation (inkl. evt. hydrofor)/trykforøger, Konstruktioner","m³/h ",50,0]
["Pumpestation (inkl. evt. hydrofor)/trykforøger, Mek./EL","m³/h ",25,0]
["Pumpestation (inkl. evt. hydrofor)/trykforøger, SRO","m³/h ",10,0]
["Beholderanlæg - højdebeholder","m³",50,0]
["Beholderanlæg - vandtårn","m³",50,0]
["Pumpestationer, bygværker og bassiner 12"]
["Pumpestation (inkl. evt. hydrofor)/trykforøger, Konstruktioner","m³/h ",50,0]
["Pumpestation (inkl. evt. hydrofor)/trykforøger, Mek./EL","m³/h ",25,0]
["Pumpestation (inkl. evt. hydrofor)/trykforøger, SRO","m³/h ",10,0]
["Beholderanlæg - højdebeholder","m³",50,0]
["Beholderanlæg - vandtårn","m³",50,0]
["Pumpestationer, bygværker og bassiner 13"]
["Pumpestation (inkl. evt. hydrofor)/trykforøger, Konstruktioner","m³/h ",50,0]
["Pumpestation (inkl. evt. hydrofor)/trykforøger, Mek./EL","m³/h ",25,0]
["Pumpestation (inkl. evt. hydrofor)/trykforøger, SRO","m³/h ",10,0]
["Beholderanlæg - højdebeholder","m³",50,0]
["Beholderanlæg - vandtårn","m³",50,0]
["Pumpestationer, bygværker og bassiner 14"]
["Pumpestation (inkl. evt. hydrofor)/trykforøger, Konstruktioner","m³/h ",50,0]
["Pumpestation (inkl. evt. hydrofor)/trykforøger, Mek./EL","m³/h ",25,0]
["Pumpestation (inkl. evt. hydrofor)/trykforøger, SRO","m³/h ",10,0]
["Beholderanlæg - højdebeholder","m³",50,0]
["Beholderanlæg - vandtårn","m³",50,0]
["Pumpestationer, bygværker og bassiner 15"]
["Pumpestation (inkl. evt. hydrofor)/trykforøger, Konstruktioner","m³/h ",50,0]
["Pumpestation (inkl. evt. hydrofor)/trykforøger, Mek./EL","m³/h ",25,0]
["Pumpestation (inkl. evt. hydrofor)/trykforøger, SRO","m³/h ",10,0]
["Beholderanlæg - højdebeholder","m³",50,0]
["Beholderanlæg - vandtårn","m³",50,0]
["Pumpestationer, bygværker og bassiner 16"]
["Pumpestation (inkl. evt. hydrofor)/trykforøger, Konstruktioner","m³/h ",50,0]
["Pumpestation (inkl. evt. hydrofor)/trykforøger, Mek./EL","m³/h ",25,0]
["Pumpestation (inkl. evt. hydrofor)/trykforøger, SRO","m³/h ",10,0]
["Beholderanlæg - højdebeholder","m³",50,0]
["Beholderanlæg - vandtårn","m³",50,0]
["Pumpestationer, bygværker og bassiner 17"]
["Pumpestation (inkl. evt. hydrofor)/trykforøger, Konstruktioner","m³/h ",50,0]
["Pumpestation (inkl. evt. hydrofor)/trykforøger, Mek./EL","m³/h ",25,0]
["Pumpestation (inkl. evt. hydrofor)/trykforøger, SRO","m³/h ",10,0]
["Beholderanlæg - højdebeholder","m³",50,0]
["Beholderanlæg - vandtårn","m³",50,0]
["Pumpestationer, bygværker og bassiner 18"]
["Pumpestation (inkl. evt. hydrofor)/trykforøger, Konstruktioner","m³/h ",50,0]
["Pumpestation (inkl. evt. hydrofor)/trykforøger, Mek./EL","m³/h ",25,0]
["Pumpestation (inkl. evt. hydrofor)/trykforøger, SRO","m³/h ",10,0]
["Beholderanlæg - højdebeholder","m³",50,0]
["Beholderanlæg - vandtårn","m³",50,0]
["Pumpestationer, bygværker og bassiner 19"]
["Pumpestation (inkl. evt. hydrofor)/trykforøger, Konstruktioner","m³/h ",50,0]
["Pumpestation (inkl. evt. hydrofor)/trykforøger, Mek./EL","m³/h ",25,0]
["Pumpestation (inkl. evt. hydrofor)/trykforøger, SRO","m³/h ",10,0]
["Beholderanlæg - højdebeholder","m³",50,0]
["Beholderanlæg - vandtårn","m³",50,0]
["Pumpestationer, bygværker og bassiner 20"]
["Pumpestation (inkl. evt. hydrofor)/trykforøger, Konstruktioner","m³/h ",50,0]
["Pumpestation (inkl. evt. hydrofor)/trykforøger, Mek./EL","m³/h ",25,0]
["Pumpestation (inkl. evt. hydrofor)/trykforøger, SRO","m³/h ",10,0]
["Beholderanlæg - højdebeholder","m³",50,0]
["Beholderanlæg - vandtårn","m³",50,0]
["Pumpestationer, bygværker og bassiner 21"]
["Pumpestation (inkl. evt. hydrofor)/trykforøger, Konstruktioner","m³/h ",50,0]
["Pumpestation (inkl. evt. hydrofor)/trykforøger, Mek./EL","m³/h ",25,0]
["Pumpestation (inkl. evt. hydrofor)/trykforøger, SRO","m³/h ",10,0]
["Beholderanlæg - højdebeholder","m³",50,0]
["Beholderanlæg - vandtårn","m³",50,0]
["Pumpestationer, bygværker og bassiner 22"]
["Pumpestation (inkl. evt. hydrofor)/trykforøger, Konstruktioner","m³/h ",50,0]
["Pumpestation (inkl. evt. hydrofor)/trykforøger, Mek./EL","m³/h ",25,0]
["Pumpestation (inkl. evt. hydrofor)/trykforøger, SRO","m³/h ",10,0]
["Beholderanlæg - højdebeholder","m³",50,0]
["Beholderanlæg - vandtårn","m³",50,0]
["Pumpestationer, bygværker og bassiner 23"]
["Pumpestation (inkl. evt. hydrofor)/trykforøger, Konstruktioner","m³/h ",50,0]
["Pumpestation (inkl. evt. hydrofor)/trykforøger, Mek./EL","m³/h ",25,0]
["Pumpestation (inkl. evt. hydrofor)/trykforøger, SRO","m³/h ",10,0]
["Beholderanlæg - højdebeholder","m³",50,0]
["Beholderanlæg - vandtårn","m³",50,0]
["Pumpestationer, bygværker og bassiner 24"]
["Pumpestation (inkl. evt. hydrofor)/trykforøger, Konstruktioner","m³/h ",50,0]
["Pumpestation (inkl. evt. hydrofor)/trykforøger, Mek./EL","m³/h ",25,0]
["Pumpestation (inkl. evt. hydrofor)/trykforøger, SRO","m³/h ",10,0]
["Beholderanlæg - højdebeholder","m³",50,0]
["Beholderanlæg - vandtårn","m³",50,0]
["Pumpestationer, bygværker og bassiner 25"]
["Pumpestation (inkl. evt. hydrofor)/trykforøger, Konstruktioner","m³/h ",50,0]
["Pumpestation (inkl. evt. hydrofor)/trykforøger, Mek./EL","m³/h ",25,0]
["Pumpestation (inkl. evt. hydrofor)/trykforøger, SRO","m³/h ",10,0]
["Beholderanlæg - højdebeholder","m³",50,0]
["Beholderanlæg - vandtårn","m³",50,0]
["Pumpestationer, bygværker og bassiner 26"]
["Pumpestation (inkl. evt. hydrofor)/trykforøger, Konstruktioner","m³/h ",50,0]
["Pumpestation (inkl. evt. hydrofor)/trykforøger, Mek./EL","m³/h ",25,0]
["Pumpestation (inkl. evt. hydrofor)/trykforøger, SRO","m³/h ",10,0]
["Beholderanlæg - højdebeholder","m³",50,0]
["Beholderanlæg - vandtårn","m³",50,0]
["Pumpestationer, bygværker og bassiner 27"]
["Pumpestation (inkl. evt. hydrofor)/trykforøger, Konstruktioner","m³/h ",50,0]
["Pumpestation (inkl. evt. hydrofor)/trykforøger, Mek./EL","m³/h ",25,0]
["Pumpestation (inkl. evt. hydrofor)/trykforøger, SRO","m³/h ",10,0]
["Beholderanlæg - højdebeholder","m³",50,0]
["Beholderanlæg - vandtårn","m³",50,0]
["Pumpestationer, bygværker og bassiner 28"]
["Pumpestation (inkl. evt. hydrofor)/trykforøger, Konstruktioner","m³/h ",50,0]
["Pumpestation (inkl. evt. hydrofor)/trykforøger, Mek./EL","m³/h ",25,0]
["Pumpestation (inkl. evt. hydrofor)/trykforøger, SRO","m³/h ",10,0]
["Beholderanlæg - højdebeholder","m³",50,0]
["Beholderanlæg - vandtårn","m³",50,0]
["Pumpestationer, bygværker og bassiner 29"]
["Pumpestation (inkl. evt. hydrofor)/trykforøger, Konstruktioner","m³/h ",50,0]
["Pumpestation (inkl. evt. hydrofor)/trykforøger, Mek./EL","m³/h ",25,0]
["Pumpestation (inkl. evt. hydrofor)/trykforøger, SRO","m³/h ",10,0]
["Beholderanlæg - højdebeholder","m³",50,0]
["Beholderanlæg - vandtårn","m³",50,0]
["Pumpestationer, bygværker og bassiner 30"]
["Pumpestation (inkl. evt. hydrofor)/trykforøger, Konstruktioner","m³/h ",50,0]
["Pumpestation (inkl. evt. hydrofor)/trykforøger, Mek./EL","m³/h ",25,0]
["Pumpestation (inkl. evt. hydrofor)/trykforøger, SRO","m³/h ",10,0]
["Beholderanlæg - højdebeholder","m³",50,0]
["Beholderanlæg - vandtårn","m³",50,0]
["Pumpestationer, bygværker og bassiner 31"]
["Pumpestation (inkl. evt. hydrofor)/trykforøger, Konstruktioner","m³/h ",50,0]
["Pumpestation (inkl. evt. hydrofor)/trykforøger, Mek./EL","m³/h ",25,0]
["Pumpestation (inkl. evt. hydrofor)/trykforøger, SRO","m³/h ",10,0]
["Beholderanlæg - højdebeholder","m³",50,0]
["Beholderanlæg - vandtårn","m³",50,0]
["Pumpestationer, bygværker og bassiner 32"]
["Pumpestation (inkl. evt. hydrofor)/trykforøger, Konstruktioner","m³/h ",50,0]
["Pumpestation (inkl. evt. hydrofor)/trykforøger, Mek./EL","m³/h ",25,0]
["Pumpestation (inkl. evt. hydrofor)/trykforøger, SRO","m³/h ",10,0]
["Beholderanlæg - højdebeholder","m³",50,0]
["Beholderanlæg - vandtårn","m³",50,0]
["Pumpestationer, bygværker og bassiner 33"]
["Pumpestation (inkl. evt. hydrofor)/trykforøger, Konstruktioner","m³/h ",50,0]
["Pumpestation (inkl. evt. hydrofor)/trykforøger, Mek./EL","m³/h ",25,0]
["Pumpestation (inkl. evt. hydrofor)/trykforøger, SRO","m³/h ",10,0]
["Beholderanlæg - højdebeholder","m³",50,0]
["Beholderanlæg - vandtårn","m³",50,0]
["Pumpestationer, bygværker og bassiner 34"]
["Pumpestation (inkl. evt. hydrofor)/trykforøger, Konstruktioner","m³/h ",50,0]
["Pumpestation (inkl. evt. hydrofor)/trykforøger, Mek./EL","m³/h ",25,0]
["Pumpestation (inkl. evt. hydrofor)/trykforøger, SRO","m³/h ",10,0]
["Beholderanlæg - højdebeholder","m³",50,0]
["Beholderanlæg - vandtårn","m³",50,0]
["Pumpestationer, bygværker og bassiner 35"]
["Pumpestation (inkl. evt. hydrofor)/trykforøger, Konstruktioner","m³/h ",50,0]
["Pumpestation (inkl. evt. hydrofor)/trykforøger, Mek./EL","m³/h ",25,0]
["Pumpestation (inkl. evt. hydrofor)/trykforøger, SRO","m³/h ",10,0]
["Beholderanlæg - højdebeholder","m³",50,0]
["Beholderanlæg - vandtårn","m³",50,0]
["Andre"]
["Afregningsmålere, mekaniske, ","stk.",8,9811,9851]
["Afregningsmålere, elektroniske ≤ Ø 110mm (Qn 10)","stk.",10,172,172]
["Afregningsmålere, elektroniske > Ø110 mm","stk.",10,14,14]
["SRO-brønd/kvarterbrønd/sektionsbrønd, Konstruktioner","stk.",50,2,2]
["SRO-brønd/kvarterbrønd/sektionsbrønd, Mek./EL","stk.",15,4,4]
["SRO-brønd/kvarterbrønd/sektionsbrønd, SRO","stk.",10,7,7]

{"sheet":"Fællesfunktionsanlæg","index":2,"n_rows":11,"n_cols":6,"rows_kept":11,"cut":false,"hidden":false,"merged":[[0,5,1,5],[0,0,1,0],[0,1,1,1],[0,2,1,2],[0,3,1,3],[0,4,1,4]]}
["Fællesfunktionsanlæg","Enhed","Standard-levetid","Samlet mængde per 31/12-2014","Samlet mængde per 31/12-2015","Bemærk-ninger"]
[]
["Andre"]
["Køretøjer, personbil","stk.",5,7,7]
["Køretøjer, små lastvogne (< 3.500 kg.)","stk.",5,1,1]
["Køretøjer, store lastvogne (> 3.500 kg.)","stk.",5,0,0]
["Køretøjer, entreprenørmaskiner","stk.",5,3,4]
["Øvrige"]
["Solcelleanlæg","KWh",25,0,0]
["EDB, tablets og navigationsudstyr","stk.",5,20,22]
["Elektroniske kort","stk.",5,12,12]

{"sheet":"Drop downliste","index":3,"n_rows":13,"n_cols":11,"rows_kept":13,"cut":false,"hidden":true,"merged":[]}
[]
[null,"datakvalitet","Serviceselskab","Overheads","Infrastrukturomlægninger","Infrastruktur per år","år 1","år 2","år 3","år 4","år 5"]
[null,null,null,null,null,null,2010,2011,2012,2013,2014]
[null,1,"ja","Full-cost","ja",0.1]
[null,2,"nej","Direct-cost","nej",0.2]
[null,3,null,"Nøgletalsfordeling",null,0.3]
[null,null,null,"Activity based cost",null,0.4]
[null,null,null,"Andet",null,0.5]
[null,null,null,null,null,0.6]
[null,null,null,null,null,0.7]
[null,null,null,null,null,0.8]
[null,null,null,null,null,0.9]
[null,null,null,null,null,1]